Workbook

Sheet النسب
A2: النسبة المؤية | B2: النسبة العامة | C2: المبلغ | D2: اسم البند | E2: القيمة المستحقة | F2: النسبة المؤية | I2: =VLOOKUP($H5,'النسب '!$A$2:$E$23,6,0) ->  | J2: اسم البند
A3: =D3&F3 -> 00 | B3: 0 | C3: 0 | D3: 0 | E3: 0 | F3: 0 | J3: 0
A4: مجارى مطر وكمر وتدعيمات0.05 | B4: 5 | C4: 32000 | D4: مجارى مطر وكمر وتدعيمات | E4: =C4*F4 -> 1600 | F4: 0.05 | J4: مجارى مطر وكمر وتدعيمات
A5: مجارى مطر وكمر وتدعيمات0.1 | B5: 10 | C5: =+C4 -> 32000 | D5: =+D4 -> مجارى مطر وكمر وتدعيمات | E5: 3200 | F5: 0.1 | J5: الاقواس والمدادات
A6: مجارى مطر وكمر وتدعيمات0.15 | B6: 15 | C6: =+C5 -> 32000 | D6: مجارى مطر وكمر وتدعيمات | E6: 4800 | F6: 0.15 | J6: البروفيل
A7: مجارى مطر وكمر وتدعيمات0.2 | B7: 20 | C7: 32000 | D7: مجارى مطر وكمر وتدعيمات | E7: 6400 | F7: 0.2 | J7: البوابات
A8: مجارى مطر وكمر وتدعيمات0.25 | B8: 25 | C8: 32000 | D8: مجارى مطر وكمر وتدعيمات | E8: 8000 | F8: 0.25 | J8: النهايز
A9: مجارى مطر وكمر وتدعيمات0.3 | B9: 30 | C9: 32000 | D9: مجارى مطر وكمر وتدعيمات | E9: 9600 | F9: 0.3 | J9: حامل ثمار
A10: مجارى مطر وكمر وتدعيمات0.35 | B10: 35 | C10: 32000 | D10: مجارى مطر وكمر وتدعيمات | E10: 11200 | F10: 0.35 | J10: أعمدة وجرابات
A11: مجارى مطر وكمر وتدعيمات0.4 | B11: 40 | C11: 32000 | D11: مجارى مطر وكمر وتدعيمات | E11: 12800 | F11: 0.4
A12: مجارى مطر وكمر وتدعيمات0.45 | B12: 45 | C12: 32000 | D12: مجارى مطر وكمر وتدعيمات | E12: 14400 | F12: 0.45
A13: مجارى مطر وكمر وتدعيمات0.5 | B13: 50 | C13: 32000 | D13: مجارى مطر وكمر وتدعيمات | E13: 16000 | F13: 0.5
A14: مجارى مطر وكمر وتدعيمات0.55 | B14: 55 | C14: 32000 | D14: مجارى مطر وكمر وتدعيمات | E14: 17600 | F14: 0.55
A15: مجارى مطر وكمر وتدعيمات0.6 | B15: 60 | C15: 32000 | D15: مجارى مطر وكمر وتدعيمات | E15: 19200 | F15: 0.6
A16: مجارى مطر وكمر وتدعيمات0.65 | B16: 65 | C16: 32000 | D16: مجارى مطر وكمر وتدعيمات | E16: 20800 | F16: 0.65
A17: مجارى مطر وكمر وتدعيمات0.7 | B17: 70 | C17: 32000 | D17: مجارى مطر وكمر وتدعيمات | E17: 22400 | F17: 0.7
A18: مجارى مطر وكمر وتدعيمات0.75 | B18: 75 | C18: 32000 | D18: مجارى مطر وكمر وتدعيمات | E18: 24000 | F18: 0.75
A19: مجارى مطر وكمر وتدعيمات0.8 | B19: 80 | C19: 32000 | D19: مجارى مطر وكمر وتدعيمات | E19: 25600 | F19: 0.8
A20: مجارى مطر وكمر وتدعيمات0.85 | B20: 85 | C20: 32000 | D20: مجارى مطر وكمر وتدعيمات | E20: 27200 | F20: 0.85
A21: مجارى مطر وكمر وتدعيمات0.9 | B21: 90 | C21: 32000 | D21: مجارى مطر وكمر وتدعيمات | E21: 28800 | F21: 0.9
A22: مجارى مطر وكمر وتدعيمات0.95 | B22: 95 | C22: =+C21 -> 32000 | D22: مجارى مطر وكمر وتدعيمات | E22: 30400 | F22: 0.95
A23: مجارى مطر وكمر وتدعيمات1 | B23: 100 | C23: 32000 | D23: مجارى مطر وكمر وتدعيمات | E23: 32000 | F23: 1
A24: الاقواس والمدادات0.05 | B24: 5 | C24: 42000 | D24: الاقواس والمدادات | E24: 2100 | F24: 0.05
A25: الاقواس والمدادات0.1 | B25: 10 | C25: =+C24 -> 42000 | D25: الاقواس والمدادات | E25: 4200 | F25: 0.1
A26: الاقواس والمدادات0.15 | B26: 15 | C26: =+C25 -> 42000 | D26: الاقواس والمدادات | E26: 6300 | F26: 0.15
A27: الاقواس والمدادات0.2 | B27: 20 | C27: 42000 | D27: الاقواس والمدادات | E27: 8400 | F27: 0.2
A28: الاقواس والمدادات0.25 | B28: 25 | C28: 42000 | D28: الاقواس والمدادات | E28: 10500 | F28: 0.25
A29: الاقواس والمدادات0.3 | B29: 30 | C29: 42000 | D29: الاقواس والمدادات | E29: 12600 | F29: 0.3
A30: الاقواس والمدادات0.35 | B30: 35 | C30: 42000 | D30: الاقواس والمدادات | E30: 14700 | F30: 0.35
A31: الاقواس والمدادات0.4 | B31: 40 | C31: 42000 | D31: الاقواس والمدادات | E31: 16800 | F31: 0.4
A32: الاقواس والمدادات0.45 | B32: 45 | C32: 42000 | D32: الاقواس والمدادات | E32: 18900 | F32: 0.45
A33: الاقواس والمدادات0.5 | B33: 50 | C33: 42000 | D33: الاقواس والمدادات | E33: 21000 | F33: 0.5
A34: الاقواس والمدادات0.55 | B34: 55 | C34: 42000 | D34: الاقواس والمدادات | E34: 23100 | F34: 0.55
A35: =D35&F35 -> الاقواس والمدادات0.6 | B35: 60 | C35: 42000 | D35: الاقواس والمدادات | E35: 25200 | F35: 0.6
A36: الاقواس والمدادات0.65 | B36: 65 | C36: 42000 | D36: الاقواس والمدادات | E36: =C36*F36 -> 27300 | F36: 0.65
A37: الاقواس والمدادات0.7 | B37: 70 | C37: 42000 | D37: الاقواس والمدادات | E37: 29400 | F37: 0.7
A38: الاقواس والمدادات0.75 | B38: 75 | C38: 42000 | D38: الاقواس والمدادات | E38: 31500 | F38: 0.75
A39: الاقواس والمدادات0.8 | B39: 80 | C39: 42000 | D39: الاقواس والمدادات | E39: 33600 | F39: 0.8
A40: الاقواس والمدادات0.85 | B40: 85 | C40: 42000 | D40: الاقواس والمدادات | E40: 35700 | F40: 0.85
A41: الاقواس والمدادات0.9 | B41: 90 | C41: 42000 | D41: الاقواس والمدادات | E41: 37800 | F41: 0.9
A42: الاقواس والمدادات0.95 | B42: 95 | C42: 42000 | D42: الاقواس والمدادات | E42: 39900 | F42: 0.95
A43: الاقواس والمدادات1 | B43: 100 | C43: 42000 | D43: الاقواس والمدادات | E43: 42000 | F43: 1
A44: البروفيل0.05 | B44: 5 | C44: 42000 | D44: البروفيل | E44: 2100 | F44: 0.05
A45: البروفيل0.1 | B45: 10 | C45: =+C44 -> 42000 | D45: =+D44 -> البروفيل | E45: 4200 | F45: 0.1
A46: البروفيل0.15 | B46: 15 | C46: =+C45 -> 42000 | D46: البروفيل | E46: 6300 | F46: 0.15
A47: البروفيل0.2 | B47: 20 | C47: =+C46 -> 42000 | D47: البروفيل | E47: 8400 | F47: 0.2
A48: البروفيل0.25 | B48: 25 | C48: =+C47 -> 42000 | D48: البروفيل | E48: 10500 | F48: 0.25
A49: البروفيل0.3 | B49: 30 | C49: =+C48 -> 42000 | D49: البروفيل | E49: 12600 | F49: 0.3
A50: البروفيل0.35 | B50: 35 | C50: =+C49 -> 42000 | D50: البروفيل | E50: 14700 | F50: 0.35
A51: البروفيل0.4 | B51: 40 | C51: =+C50 -> 42000 | D51: البروفيل | E51: 16800 | F51: 0.4
A52: البروفيل0.45 | B52: 45 | C52: =+C51 -> 42000 | D52: البروفيل | E52: 18900 | F52: 0.45
A53: البروفيل0.5 | B53: 50 | C53: =+C52 -> 42000 | D53: البروفيل | E53: 21000 | F53: 0.5
A54: البروفيل0.55 | B54: 55 | C54: =+C53 -> 42000 | D54: البروفيل | E54: 23100 | F54: 0.55
A55: البروفيل0.6 | B55: 60 | C55: =+C54 -> 42000 | D55: البروفيل | E55: 25200 | F55: 0.6
A56: البروفيل0.65 | B56: 65 | C56: =+C55 -> 42000 | D56: البروفيل | E56: 27300 | F56: 0.65
A57: البروفيل0.7 | B57: 70 | C57: =+C56 -> 42000 | D57: البروفيل | E57: 29400 | F57: 0.7
A58: البروفيل0.75 | B58: 75 | C58: =+C57 -> 42000 | D58: البروفيل | E58: 31500 | F58: 0.75
A59: البروفيل0.8 | B59: 80 | C59: =+C58 -> 42000 | D59: البروفيل | E59: 33600 | F59: 0.8
A60: البروفيل0.85 | B60: 85 | C60: =+C59 -> 42000 | D60: البروفيل | E60: 35700 | F60: 0.85
A61: البروفيل0.9 | B61: 90 | C61: =+C60 -> 42000 | D61: البروفيل | E61: 37800 | F61: 0.9
A62: البروفيل0.95 | B62: 95 | C62: =+C61 -> 42000 | D62: البروفيل | E62: 39900 | F62: 0.95
A63: البروفيل1 | B63: 100 | C63: =+C62 -> 42000 | D63: البروفيل | E63: 42000 | F63: 1
A64: البوابات0.05 | B64: 5 | C64: 6000 | D64: البوابات | E64: 300 | F64: 0.05 | G64: =D64=القائمة!D7 -> FALSE
A65: البوابات0.1 | B65: 10 | C65: =+C64 -> 6000 | D65: =+D64 -> البوابات | E65: 600 | F65: 0.1
A66: البوابات0.15 | B66: 15 | C66: =+C65 -> 6000 | D66: البوابات | E66: 900 | F66: 0.15
A67: =D67&F67 -> البوابات0.2 | B67: 20 | C67: =+C66 -> 6000 | D67: البوابات | E67: 1200 | F67: 0.2
A68: البوابات0.25 | B68: 25 | C68: =+C67 -> 6000 | D68: البوابات | E68: =C68*F68 -> 1500 | F68: 0.25
A69: البوابات0.3 | B69: 30 | C69: =+C68 -> 6000 | D69: البوابات | E69: 1800 | F69: 0.3
A70: البوابات0.35 | B70: 35 | C70: =+C69 -> 6000 | D70: البوابات | E70: 2100 | F70: 0.35
A71: البوابات0.4 | B71: 40 | C71: =+C70 -> 6000 | D71: البوابات | E71: 2400 | F71: 0.4
A72: البوابات0.45 | B72: 45 | C72: =+C71 -> 6000 | D72: البوابات | E72: 2700 | F72: 0.45
A73: البوابات0.5 | B73: 50 | C73: =+C72 -> 6000 | D73: البوابات | E73: 3000 | F73: 0.5
A74: البوابات0.55 | B74: 55 | C74: =+C73 -> 6000 | D74: البوابات | E74: 3300 | F74: 0.55
A75: البوابات0.6 | B75: 60 | C75: =+C74 -> 6000 | D75: البوابات | E75: 3600 | F75: 0.6
A76: البوابات0.65 | B76: 65 | C76: =+C75 -> 6000 | D76: البوابات | E76: 3900 | F76: 0.65
A77: البوابات0.7 | B77: 70 | C77: =+C76 -> 6000 | D77: البوابات | E77: 4200 | F77: 0.7
A78: البوابات0.75 | B78: 75 | C78: =+C77 -> 6000 | D78: البوابات | E78: 4500 | F78: 0.75
A79: البوابات0.8 | B79: 80 | C79: =+C78 -> 6000 | D79: البوابات | E79: 4800 | F79: 0.8
A80: البوابات0.85 | B80: 85 | C80: =+C79 -> 6000 | D80: البوابات | E80: 5100 | F80: 0.85
A81: البوابات0.9 | B81: 90 | C81: =+C80 -> 6000 | D81: البوابات | E81: 5400 | F81: 0.9
A82: البوابات0.95 | B82: 95 | C82: =+C81 -> 6000 | D82: البوابات | E82: 5700 | F82: 0.95
A83: البوابات1 | B83: 100 | C83: =+C82 -> 6000 | D83: البوابات | E83: 6000 | F83: 1
A84: النهايز0.05 | B84: 5 | C84: 6000 | D84: النهايز | E84: 300 | F84: 0.05
A85: النهايز0.1 | B85: 10 | C85: =+C84 -> 6000 | D85: =+D84 -> النهايز | E85: 600 | F85: 0.1
A86: النهايز0.15 | B86: 15 | C86: =+C85 -> 6000 | D86: النهايز | E86: 900 | F86: 0.15
A87: النهايز0.2 | B87: 20 | C87: =+C86 -> 6000 | D87: النهايز | E87: 1200 | F87: 0.2
A88: النهايز0.25 | B88: 25 | C88: =+C87 -> 6000 | D88: النهايز | E88: 1500 | F88: 0.25
A89: النهايز0.3 | B89: 30 | C89: =+C88 -> 6000 | D89: النهايز | E89: 1800 | F89: 0.3
A90: النهايز0.35 | B90: 35 | C90: =+C89 -> 6000 | D90: النهايز | E90: 2100 | F90: 0.35
A91: النهايز0.4 | B91: 40 | C91: =+C90 -> 6000 | D91: النهايز | E91: 2400 | F91: 0.4
A92: النهايز0.45 | B92: 45 | C92: =+C91 -> 6000 | D92: النهايز | E92: 2700 | F92: 0.45
A93: النهايز0.5 | B93: 50 | C93: =+C92 -> 6000 | D93: النهايز | E93: 3000 | F93: 0.5
A94: النهايز0.55 | B94: 55 | C94: =+C93 -> 6000 | D94: النهايز | E94: 3300 | F94: 0.55
A95: النهايز0.6 | B95: 60 | C95: =+C94 -> 6000 | D95: النهايز | E95: 3600 | F95: 0.6
A96: النهايز0.65 | B96: 65 | C96: =+C95 -> 6000 | D96: النهايز | E96: 3900 | F96: 0.65
A97: النهايز0.7 | B97: 70 | C97: =+C96 -> 6000 | D97: النهايز | E97: 4200 | F97: 0.7
A98: النهايز0.75 | B98: 75 | C98: =+C97 -> 6000 | D98: النهايز | E98: 4500 | F98: 0.75
A99: =D99&F99 -> النهايز0.8 | B99: 80 | C99: =+C98 -> 6000 | D99: النهايز | E99: 4800 | F99: 0.8
A100: النهايز0.85 | B100: 85 | C100: =+C99 -> 6000 | D100: النهايز | E100: =C100*F100 -> 5100 | F100: 0.85
A101: النهايز0.9 | B101: 90 | C101: =+C100 -> 6000 | D101: النهايز | E101: 5400 | F101: 0.9
A102: النهايز0.95 | B102: 95 | C102: =+C101 -> 6000 | D102: النهايز | E102: 5700 | F102: 0.95
A103: النهايز1 | B103: 100 | C103: =+C102 -> 6000 | D103: النهايز | E103: 6000 | F103: 1
A104: حامل ثمار0.05 | B104: 5 | C104: 10000 | D104: حامل ثمار | E104: 500 | F104: 0.05
A105: حامل ثمار0.1 | B105: 10 | C105: =+C104 -> 10000 | D105: =+D104 -> حامل ثمار | E105: 1000 | F105: 0.1
A106: حامل ثمار0.15 | B106: 15 | C106: =+C105 -> 10000 | D106: حامل ثمار | E106: 1500 | F106: 0.15
A107: حامل ثمار0.2 | B107: 20 | C107: =+C106 -> 10000 | D107: حامل ثمار | E107: 2000 | F107: 0.2
A108: حامل ثمار0.25 | B108: 25 | C108: =+C107 -> 10000 | D108: حامل ثمار | E108: 2500 | F108: 0.25
A109: حامل ثمار0.3 | B109: 30 | C109: =+C108 -> 10000 | D109: حامل ثمار | E109: 3000 | F109: 0.3
A110: حامل ثمار0.35 | B110: 35 | C110: =+C109 -> 10000 | D110: حامل ثمار | E110: 3500 | F110: 0.35
A111: حامل ثمار0.4 | B111: 40 | C111: =+C110 -> 10000 | D111: حامل ثمار | E111: 4000 | F111: 0.4
A112: حامل ثمار0.45 | B112: 45 | C112: =+C111 -> 10000 | D112: حامل ثمار | E112: 4500 | F112: 0.45
A113: حامل ثمار0.5 | B113: 50 | C113: =+C112 -> 10000 | D113: حامل ثمار | E113: 5000 | F113: 0.5
A114: حامل ثمار0.55 | B114: 55 | C114: =+C113 -> 10000 | D114: حامل ثمار | E114: 5500 | F114: 0.55
A115: حامل ثمار0.6 | B115: 60 | C115: =+C114 -> 10000 | D115: حامل ثمار | E115: 6000 | F115: 0.6
A116: حامل ثمار0.65 | B116: 65 | C116: =+C115 -> 10000 | D116: حامل ثمار | E116: 6500 | F116: 0.65
A117: حامل ثمار0.7 | B117: 70 | C117: =+C116 -> 10000 | D117: حامل ثمار | E117: 7000 | F117: 0.7
A118: حامل ثمار0.75 | B118: 75 | C118: =+C117 -> 10000 | D118: حامل ثمار | E118: 7500 | F118: 0.75
A119: حامل ثمار0.8 | B119: 80 | C119: =+C118 -> 10000 | D119: حامل ثمار | E119: 8000 | F119: 0.8
A120: حامل ثمار0.85 | B120: 85 | C120: =+C119 -> 10000 | D120: حامل ثمار | E120: 8500 | F120: 0.85
A121: حامل ثمار0.9 | B121: 90 | C121: =+C120 -> 10000 | D121: حامل ثمار | E121: 9000 | F121: 0.9
A122: حامل ثمار0.95 | B122: 95 | C122: =+C121 -> 10000 | D122: حامل ثمار | E122: 9500 | F122: 0.95
A123: حامل ثمار1 | B123: 100 | C123: =+C122 -> 10000 | D123: حامل ثمار | E123: 10000 | F123: 1
A124: أعمدة وجرابات0.05 | B124: 5 | C124: 35000 | D124: أعمدة وجرابات | E124: 1750 | F124: 0.05
A125: أعمدة وجرابات0.1 | B125: 10 | C125: =+C124 -> 35000 | D125: =+D124 -> أعمدة وجرابات | E125: 3500 | F125: 0.1
A126: أعمدة وجرابات0.15 | B126: 15 | C126: =+C125 -> 35000 | D126: أعمدة وجرابات | E126: 5250 | F126: 0.15
A127: أعمدة وجرابات0.2 | B127: 20 | C127: =+C126 -> 35000 | D127: أعمدة وجرابات | E127: 7000 | F127: 0.2
A128: أعمدة وجرابات0.25 | B128: 25 | C128: =+C127 -> 35000 | D128: أعمدة وجرابات | E128: 8750 | F128: 0.25
A129: أعمدة وجرابات0.3 | B129: 30 | C129: =+C128 -> 35000 | D129: أعمدة وجرابات | E129: 10500 | F129: 0.3
A130: أعمدة وجرابات0.35 | B130: 35 | C130: =+C129 -> 35000 | D130: أعمدة وجرابات | E130: 12250 | F130: 0.35
A131: =D131&F131 -> أعمدة وجرابات0.4 | B131: 40 | C131: =+C130 -> 35000 | D131: أعمدة وجرابات | E131: 14000 | F131: 0.4
A132: أعمدة وجرابات0.45 | B132: 45 | C132: =+C131 -> 35000 | D132: أعمدة وجرابات | E132: =C132*F132 -> 15750 | F132: 0.45
A133: أعمدة وجرابات0.5 | B133: 50 | C133: =+C132 -> 35000 | D133: أعمدة وجرابات | E133: 17500 | F133: 0.5
A134: أعمدة وجرابات0.55 | B134: 55 | C134: =+C133 -> 35000 | D134: أعمدة وجرابات | E134: 19250 | F134: 0.55
A135: أعمدة وجرابات0.6 | B135: 60 | C135: =+C134 -> 35000 | D135: أعمدة وجرابات | E135: 21000 | F135: 0.6
A136: أعمدة وجرابات0.65 | B136: 65 | C136: =+C135 -> 35000 | D136: أعمدة وجرابات | E136: 22750 | F136: 0.65
A137: أعمدة وجرابات0.7 | B137: 70 | C137: =+C136 -> 35000 | D137: أعمدة وجرابات | E137: 24500 | F137: 0.7
A138: أعمدة وجرابات0.75 | B138: 75 | C138: =+C137 -> 35000 | D138: أعمدة وجرابات | E138: 26250 | F138: 0.75
A139: أعمدة وجرابات0.8 | B139: 80 | C139: =+C138 -> 35000 | D139: أعمدة وجرابات | E139: 28000 | F139: 0.8
A140: أعمدة وجرابات0.85 | B140: 85 | C140: =+C139 -> 35000 | D140: أعمدة وجرابات | E140: 29750 | F140: 0.85
A141: أعمدة وجرابات0.9 | B141: 90 | C141: =+C140 -> 35000 | D141: أعمدة وجرابات | E141: 31500 | F141: 0.9
A142: أعمدة وجرابات0.95 | B142: 95 | C142: =+C141 -> 35000 | D142: أعمدة وجرابات | E142: 33250 | F142: 0.95
A143: أعمدة وجرابات1 | B143: 100 | C143: =+C142 -> 35000 | D143: أعمدة وجرابات | E143: 35000 | F143: 1
A144: 0.05 | B144: 5 | F144: 0.05
A145: 0.1 | B145: 10 | F145: 0.1
A146: 0.15 | B146: 15 | F146: 0.15
A147: 0.2 | B147: 20 | F147: 0.2
A148: 0.25 | B148: 25 | F148: 0.25
A149: 0.3 | B149: 30 | F149: 0.3
A150: 0.35 | B150: 35 | F150: 0.35
A151: 0.4 | B151: 40 | F151: 0.4
A152: 0.45 | B152: 45 | F152: 0.45
A153: 0.5 | B153: 50 | F153: 0.5
A154: 0.55 | B154: 55 | F154: 0.55
A155: 0.6 | B155: 60 | F155: 0.6
A156: 0.65 | B156: 65 | F156: 0.65
A157: 0.7 | B157: 70 | F157: 0.7
A158: 0.75 | B158: 75 | F158: 0.75
A159: 0.8 | B159: 80 | F159: 0.8
A160: 0.85 | B160: 85 | F160: 0.85
A161: 0.9 | B161: 90 | F161: 0.9
A162: 0.95 | B162: 95 | F162: 0.95
A163: 1 | B163: 100 | F163: 1

Sheet القائمة
A1: أسماء المقاولين | B1: الكلاستر | C1: الصوبة | D1: العملية | E1: =+E2-تفرير!I4 -> 2884869.1 | F1: المقاول | G1: المبلغ | I1: العقد
A2: احمد عبد العزيز | B2: 1 | C2: 1 | D2: مجارى مطر وكمر وتدعيمات | E2: =SUM(G2:G22) -> 2884875 | F2: =+A2 -> احمد عبد العزيز | G2: =SUMIF(الشغل!C4:$J$16000,$F2,الشغل!M5:M6000) -> 246755 | I2: 1-2023
A3: هانى عبد المنجى احمد | B3: 2 | C3: 2 | D3: الاقواس والمدادات | F3: =+A3 -> هانى عبد المنجى احمد | G3: =SUMIF(الشغل!C5:$J$16000,$F3,الشغل!M6:M6001) -> 537965 | I3: 2-2023
A4: عبد الله عبد النبى | B4: 3 | C4: 3 | D4: البروفيل | F4: عبد الله عبد النبى | G4: =SUMIF(الشغل!C6:$J$16000,$F4,الشغل!M7:M6002) -> 196350 | I4: 3-2023
A5: عبد الرحمن محمد سيد | B5: 4 | C5: 4 | D5: البوابات | F5: عبد الرحمن محمد سيد | G5: =SUMIF(الشغل!C7:$J$16000,$F5,الشغل!M8:M6003) -> 206380 | I5: 4-2023
A6: حسن محمود قطب | B6: 5 | C6: 5 | D6: النهايز | F6: حسن محمود قطب | G6: =SUMIF(الشغل!C8:$J$16000,$F6,الشغل!M9:M6004) -> 124950 | I6: 5-2023
A7: خالد محمد محمد السيد | B7: 6 | C7: 6 | D7: حامل ثمار | F7: خالد محمد محمد السيد | G7: =SUMIF(الشغل!C9:$J$16000,$F7,الشغل!M10:M6005) -> 327480
A8: رجب أحمد محمد | B8: 7 | C8: 7 | D8: أعمدة وجرابات | F8: رجب أحمد محمد | G8: =SUMIF(الشغل!C10:$J$16000,$F8,الشغل!M11:M6006) -> 89250
A9: رمضان على محمد | B9: 8 | C9: 8 | F9: رمضان على محمد | G9: =SUMIF(الشغل!C11:$J$16000,$F9,الشغل!M12:M6007) -> 274550
A10: صفوت السيد عطية | B10: 9 | F10: صفوت السيد عطية | G10: =SUMIF(الشغل!C12:$J$16000,$F10,الشغل!M13:M6008) -> 35190
A11: عبد الغفار عادل عبد الغفار | B11: 10 | F11: عبد الغفار عادل عبد الغفار | G11: =SUMIF(الشغل!C13:$J$16000,$F11,الشغل!M14:M6009) -> 78370
A12: فتحى محمد عبد العزيز | B12: 11 | F12: فتحى محمد عبد العزيز | G12: =SUMIF(الشغل!C14:$J$16000,$F12,الشغل!M15:M6010) -> 173230
A13: ماجد إبراهيم عبد المجيد | B13: 12 | F13: ماجد إبراهيم عبد المجيد | G13: =SUMIF(الشغل!C15:$J$16000,$F13,الشغل!M16:M6011) -> 91630
A14: محمد سعداوى أنور | B14: 13 | F14: محمد سعداوى أنور | G14: =SUMIF(الشغل!C16:$J$16000,$F14,الشغل!M17:M6012) -> 113390
A15: محمد إسماعيل عبد العظيم | B15: 14 | F15: محمد إسماعيل عبد العظيم | G15: =SUMIF(الشغل!C17:$J$16000,$F15,الشغل!M18:M6013) -> 35190
A16: محمد عبد اللطيف إبراهيم | B16: 15 | F16: محمد عبد اللطيف إبراهيم | G16: =SUMIF(الشغل!C18:$J$16000,$F16,الشغل!M19:M6014) -> 167790
A17: محمد ناجى إسماعيل | B17: 16 | F17: محمد ناجى إسماعيل | G17: =SUMIF(الشغل!C19:$J$16000,$F17,الشغل!M20:M6015) -> 90270
A18: ياسين خيرت عبد الله | B18: 17 | F18: ياسين خيرت عبد الله | G18: =SUMIF(الشغل!C20:$J$16000,$F18,الشغل!M21:M6016) -> 96135
B19: 18 | F19: 0 | G19: =SUMIF(الشغل!C21:$J$16000,$F19,الشغل!M22:M6017) -> 0
B20: 19 | F20: 0 | G20: =SUMIF(الشغل!C22:$J$16000,$F20,الشغل!M23:M6018) -> 0
B21: 20 | F21: 0 | G21: =SUMIF(الشغل!C23:$J$16000,$F21,الشغل!M24:M6019) -> 0
B22: 21 | F22: 0 | G22: =SUMIF(الشغل!C24:$J$16000,$F22,الشغل!M25:M6020) -> 0
B23: 22 | F23: 0 | G23: =SUMIF(الشغل!C25:$J$16000,$F23,الشغل!M26:M6021) -> 0
B24: 23 | F24: 0 | G24: =SUMIF(الشغل!C26:$J$16000,$F24,الشغل!M27:M6022) -> 0
B25: 24 | F25: 0 | G25: =SUMIF(الشغل!C27:$J$16000,$F25,الشغل!M28:M6023) -> 0
B26: 25 | F26: 0 | G26: =SUMIF(الشغل!C28:$J$16000,$F26,الشغل!M29:M6024) -> 0
B27: 26 | F27: 0 | G27: =SUMIF(الشغل!C29:$J$16000,$F27,الشغل!M30:M6025) -> 0
B28: 27 | F28: 0 | G28: =SUMIF(الشغل!C30:$J$16000,$F28,الشغل!M31:M6026) -> 0
B29: 28 | F29: 0 | G29: =SUMIF(الشغل!C31:$J$16000,$F29,الشغل!M32:M6027) -> 0
B30: 29 | F30: 0 | G30: =SUMIF(الشغل!C32:$J$16000,$F30,الشغل!M33:M6028) -> 0
B31: 30 | F31: 0 | G31: =SUMIF(الشغل!C33:$J$16000,$F31,الشغل!M34:M6029) -> 0
B32: 31 | F32: 0 | G32: =SUMIF(الشغل!C34:$J$16000,$F32,الشغل!M35:M6030) -> 0
B33: 32 | F33: 0 | G33: =SUMIF(الشغل!C35:$J$16000,$F33,الشغل!M36:M6031) -> 0
B34: 33 | F34: 0 | G34: =SUMIF(الشغل!C36:$J$16000,$F34,الشغل!M37:M6032) -> 0
B35: 34 | F35: 0 | G35: =SUMIF(الشغل!C37:$J$16000,$F35,الشغل!M38:M6033) -> 0
B36: 35 | F36: 0 | G36: =SUMIF(الشغل!C38:$J$16000,$F36,الشغل!M39:M6034) -> 0
B37: 36 | F37: 0 | G37: =SUMIF(الشغل!C39:$J$16000,$F37,الشغل!M40:M6035) -> 0
B38: 37 | F38: 0 | G38: =SUMIF(الشغل!C40:$J$16000,$F38,الشغل!M41:M6036) -> 0
B39: 38 | F39: 0 | G39: =SUMIF(الشغل!C41:$J$16000,$F39,الشغل!M42:M6037) -> 0
B40: 39 | F40: 0 | G40: =SUMIF(الشغل!C42:$J$16000,$F40,الشغل!M43:M6038) -> 0
B41: 40 | F41: 0 | G41: =SUMIF(الشغل!C43:$J$16000,$F41,الشغل!M44:M6039) -> 0
B42: 41 | F42: 0 | G42: =SUMIF(الشغل!C44:$J$16000,$F42,الشغل!M45:M6040) -> 0
B43: 42 | F43: 0 | G43: =SUMIF(الشغل!C45:$J$16000,$F43,الشغل!M46:M6041) -> 0
B44: 43 | F44: 0 | G44: =SUMIF(الشغل!C46:$J$16000,$F44,الشغل!M47:M6042) -> 0
B45: 44 | F45: 0 | G45: =SUMIF(الشغل!C47:$J$16000,$F45,الشغل!M48:M6043) -> 0
B46: 45 | F46: 0 | G46: =SUMIF(الشغل!C48:$J$16000,$F46,الشغل!M49:M6044) -> 0
B47: 46 | F47: 0 | G47: =SUMIF(الشغل!C49:$J$16000,$F47,الشغل!M50:M6045) -> 0
F48: 0 | G48: =SUMIF(الشغل!C50:$J$16000,$F48,الشغل!M51:M6046) -> 0
F49: 0 | G49: =SUMIF(الشغل!C51:$J$16000,$F49,الشغل!M52:M6047) -> 0
F50: 0 | G50: =SUMIF(الشغل!C52:$J$16000,$F50,الشغل!M53:M6048) -> 0
F51: 0 | G51: =SUMIF(الشغل!C53:$J$16000,$F51,الشغل!M54:M6049) -> 0
F52: 0 | G52: =SUMIF(الشغل!C54:$J$16000,$F52,الشغل!M55:M6050) -> 0
F53: 0 | G53: =SUMIF(الشغل!C55:$J$16000,$F53,الشغل!M56:M6051) -> 0
F54: 0 | G54: =SUMIF(الشغل!C56:$J$16000,$F54,الشغل!M57:M6052) -> 0
F55: 0 | G55: =SUMIF(الشغل!C57:$J$16000,$F55,الشغل!M58:M6053) -> 0
F56: 0 | G56: =SUMIF(الشغل!C58:$J$16000,$F56,الشغل!M59:M6054) -> 0
F57: 0 | G57: =SUMIF(الشغل!C59:$J$16000,$F57,الشغل!M60:M6055) -> 0
F58: 0 | G58: =SUMIF(الشغل!C60:$J$16000,$F58,الشغل!M61:M6056) -> 0
F59: 0 | G59: =SUMIF(الشغل!C61:$J$16000,$F59,الشغل!M62:M6057) -> 0
F60: 0 | G60: =SUMIF(الشغل!C62:$J$16000,$F60,الشغل!M63:M6058) -> 0
F61: 0 | G61: =SUMIF(الشغل!C63:$J$16000,$F61,الشغل!M64:M6059) -> 0
F62: 0 | G62: =SUMIF(الشغل!C64:$J$16000,$F62,الشغل!M65:M6060) -> 0
F63: 0 | G63: =SUMIF(الشغل!C65:$J$16000,$F63,الشغل!M66:M6061) -> 0
F64: 0 | G64: =SUMIF(الشغل!C66:$J$16000,$F64,الشغل!M67:M6062) -> 0
F65: 0 | G65: =SUMIF(الشغل!C67:$J$16000,$F65,الشغل!M68:M6063) -> 0
F66: 0 | G66: =SUMIF(الشغل!C68:$J$16000,$F66,الشغل!M69:M6064) -> 0
F67: =+A67 -> 0 | G67: =SUMIF(الشغل!C69:$J$16000,$F67,الشغل!M70:M6065) -> 0
F68: 0 | G68: =SUMIF(الشغل!C70:$J$16000,$F68,الشغل!M71:M6066) -> 0
F69: 0 | G69: =SUMIF(الشغل!C71:$J$16000,$F69,الشغل!M72:M6067) -> 0
F70: 0 | G70: =SUMIF(الشغل!C72:$J$16000,$F70,الشغل!M73:M6068) -> 0
F71: 0 | G71: =SUMIF(الشغل!C73:$J$16000,$F71,الشغل!M74:M6069) -> 0
F72: 0 | G72: =SUMIF(الشغل!C74:$J$16000,$F72,الشغل!M75:M6070) -> 0
F73: 0 | G73: =SUMIF(الشغل!C75:$J$16000,$F73,الشغل!M76:M6071) -> 0
F74: 0 | G74: =SUMIF(الشغل!C76:$J$16000,$F74,الشغل!M77:M6072) -> 0
F75: 0 | G75: =SUMIF(الشغل!C77:$J$16000,$F75,الشغل!M78:M6073) -> 0
F76: 0 | G76: =SUMIF(الشغل!C78:$J$16000,$F76,الشغل!M79:M6074) -> 0
F77: 0 | G77: =SUMIF(الشغل!C79:$J$16000,$F77,الشغل!M80:M6075) -> 0
F78: 0 | G78: =SUMIF(الشغل!C80:$J$16000,$F78,الشغل!M81:M6076) -> 0
F79: 0 | G79: =SUMIF(الشغل!C81:$J$16000,$F79,الشغل!M82:M6077) -> 0
F80: 0 | G80: =SUMIF(الشغل!C82:$J$16000,$F80,الشغل!M83:M6078) -> 0
F81: 0 | G81: =SUMIF(الشغل!C83:$J$16000,$F81,الشغل!M84:M6079) -> 0
F82: 0 | G82: =SUMIF(الشغل!C84:$J$16000,$F82,الشغل!M85:M6080) -> 0
F83: 0 | G83: =SUMIF(الشغل!C85:$J$16000,$F83,الشغل!M86:M6081) -> 0
F84: 0 | G84: =SUMIF(الشغل!C86:$J$16000,$F84,الشغل!M87:M6082) -> 0
F85: 0 | G85: =SUMIF(الشغل!C87:$J$16000,$F85,الشغل!M88:M6083) -> 0
F86: 0 | G86: =SUMIF(الشغل!C88:$J$16000,$F86,الشغل!M89:M6084) -> 0
F87: 0 | G87: =SUMIF(الشغل!C89:$J$16000,$F87,الشغل!M90:M6085) -> 0
F88: 0 | G88: =SUMIF(الشغل!C90:$J$16000,$F88,الشغل!M91:M6086) -> 0
F89: 0 | G89: =SUMIF(الشغل!C91:$J$16000,$F89,الشغل!M92:M6087) -> 0
F90: 0 | G90: =SUMIF(الشغل!C92:$J$16000,$F90,الشغل!M93:M6088) -> 0
F91: 0 | G91: =SUMIF(الشغل!C93:$J$16000,$F91,الشغل!M94:M6089) -> 0
F92: 0 | G92: =SUMIF(الشغل!C94:$J$16000,$F92,الشغل!M95:M6090) -> 0
F93: 0 | G93: =SUMIF(الشغل!C95:$J$16000,$F93,الشغل!M96:M6091) -> 0
F94: 0 | G94: =SUMIF(الشغل!C96:$J$16000,$F94,الشغل!M97:M6092) -> 0
F95: 0 | G95: =SUMIF(الشغل!C97:$J$16000,$F95,الشغل!M98:M6093) -> 0
F96: 0 | G96: =SUMIF(الشغل!C98:$J$16000,$F96,الشغل!M99:M6094) -> 0
F97: 0 | G97: =SUMIF(الشغل!C99:$J$16000,$F97,الشغل!M100:M6095) -> 0
F98: 0 | G98: =SUMIF(الشغل!C100:$J$16000,$F98,الشغل!M101:M6096) -> 0
F99: 0 | G99: =SUMIF(الشغل!C101:$J$16000,$F99,الشغل!M102:M6097) -> 0
F100: 0 | G100: =SUMIF(الشغل!C102:$J$16000,$F100,الشغل!M103:M6098) -> 0
F101: 0 | G101: =SUMIF(الشغل!C103:$J$16000,$F101,الشغل!M104:M6099) -> 0
F102: 0 | G102: =SUMIF(الشغل!C104:$J$16000,$F102,الشغل!M105:M6100) -> 0
F103: 0 | G103: =SUMIF(الشغل!C105:$J$16000,$F103,الشغل!M106:M6101) -> 0
F104: 0 | G104: =SUMIF(الشغل!C106:$J$16000,$F104,الشغل!M107:M6102) -> 0
F105: 0 | G105: =SUMIF(الشغل!C107:$J$16000,$F105,الشغل!M108:M6103) -> 0

Sheet الشغل
K1: 0.1 | L1: 0.05
J2: =SUBTOTAL(9,J5:J1000) -> 3365100 | K2: =SUBTOTAL(9,K5:K1000) -> 302450 | L2: =SUBTOTAL(9,L5:L1000) -> 168255 | M2: =SUBTOTAL(9,M5:M1000) -> 2894395 | O2: =262990-248115 -> 14875
O3: =+O2-14875 -> 0
A4: اليوم | B4: التاريخ | C4: المقاول | D4: رقم الجارى | E4: الكلاستر | F4: الصوبة | G4: رقم العقد | H4: العملية | I4: النسبة | J4: القيمة المستحقة | K4: تامين10% | L4: بيت5% | M4: الصافى
A5: =+B5 -> 2023-07-16 | B5: 2023-07-16 | C5: احمد عبد العزيز | D5: 2 | E5: 5 | F5: 3 | G5: 37-2023 | H5: مجارى مطر وكمر وتدعيمات | I5: 0.35 | J5: =IFERROR(VLOOKUP($H5&I5,'النسب '!$A$2:$E$143,5,0),"") -> 11200 | K5: =IFERROR(IF(J4<>"",J5*$K$1,""),"") -> 1120 | L5: =IFERROR(IF(K4<>"",J5*$L$1,""),"") -> 560 | M5: =IFERROR(IF(J5<>"",J5-K5-L5,""),"") -> 9520
A6: =+B6 -> 2023-06-21 | B6: 2023-06-21 | C6: احمد عبد العزيز | D6: 1 | E6: 5 | F6: 3 | G6: 37-2023 | H6: مجارى مطر وكمر وتدعيمات | I6: 0.55 | J6: =IFERROR(VLOOKUP($H6&$I6,'النسب '!$A$2:$E$143,5,0),"") -> 17600 | K6: =IFERROR(IF(J5<>"",J6*$K$1,""),"") -> 1760 | L6: =IFERROR(IF(K5<>"",J6*$L$1,""),"") -> 880 | M6: =IFERROR(IF(J6<>"",J6-K6-L6,""),"") -> 14960
A7: 2023-07-16 | B7: 2023-07-16 | C7: احمد عبد العزيز | D7: 2 | E7: 5 | F7: 3 | G7: 23-2023 | H7: الاقواس والمدادات | I7: 0.2 | J7: =IFERROR(VLOOKUP($H7&$I7,'النسب '!$A$2:$E$143,5,0),"") -> 8400 | K7: =IFERROR(IF(J6<>"",J7*$K$1,""),"") -> 840 | L7: =IFERROR(IF(K6<>"",J7*$L$1,""),"") -> 420 | M7: =IFERROR(IF(J7<>"",J7-K7-L7,""),"") -> 7140
A8: 2023-07-16 | B8: 2023-07-16 | C8: احمد عبد العزيز | D8: 1 | E8: 24 | F8: 8 | G8: 50-2023 | H8: أعمدة وجرابات | I8: 1 | J8: =IFERROR(VLOOKUP($H8&$I8,'النسب '!$A$2:$E$143,5,0),"") -> 35000 | K8: 3500 | L8: 1750 | M8: 29750
A9: 2023-07-16 | B9: 2023-07-16 | C9: احمد عبد العزيز | D9: 1 | E9: 24 | F9: 6 | G9: 50-2023 | H9: أعمدة وجرابات | I9: 0.5 | J9: =IFERROR(VLOOKUP($H9&$I9,'النسب '!$A$2:$E$143,5,0),"") -> 17500 | K9: 1750 | L9: 875 | M9: 14875
A10: 2023-06-25 | B10: 2023-06-25 | C10: احمد عبد العزيز | D10: 2 | E10: 5 | F10: 1 | G10: 37-2023 | H10: أعمدة وجرابات | I10: 0.5 | J10: =IFERROR(VLOOKUP($H10&$I10,'النسب '!$A$2:$E$143,5,0),"") -> 17500 | K10: 1750 | L10: 875 | M10: 14875
A11: 2023-07-16 | B11: 2023-07-16 | C11: احمد عبد العزيز | D11: 2 | E11: 5 | F11: 1 | G11: 37-2023 | H11: أعمدة وجرابات | I11: 0.5 | J11: =IFERROR(VLOOKUP($H11&$I11,'النسب '!$A$2:$E$143,5,0),"") -> 17500 | K11: 1750 | L11: 875 | M11: 14875
A12: 2023-07-16 | B12: 2023-07-16 | C12: احمد عبد العزيز | D12: 1 | E12: 5 | F12: 1 | G12: 37-2023 | H12: مجارى مطر وكمر وتدعيمات | I12: 0.7 | J12: =IFERROR(VLOOKUP($H12&$I12,'النسب '!$A$2:$E$143,5,0),"") -> 22400 | K12: 2240 | L12: 1120 | M12: 19040
A13: 2023-06-20 | B13: 2023-06-20 | C13: هانى عبد المنجى احمد | D13: 3 | E13: 2 | F13: 4 | G13: 8-2023 | H13: الاقواس والمدادات | I13: 0.3 | J13: =IFERROR(VLOOKUP($H13&$I13,'النسب '!$A$2:$E$143,5,0),"") -> 12600 | K13: 1260 | L13: 630 | M13: 10710
A14: 2023-07-17 | B14: 2023-07-17 | C14: عبد الله عبد النبى | D14: 2 | E14: 1 | F14: 7 | G14: 27-2023 | H14: أعمدة وجرابات | I14: 0.3 | J14: =IFERROR(VLOOKUP($H14&$I14,'النسب '!$A$2:$E$143,5,0),"") -> 10500 | K14: 1050 | L14: 525 | M14: 8925
A15: 2023-06-21 | B15: 2023-06-21 | C15: عبد الله عبد النبى | D15: 1 | E15: 1 | F15: 7 | G15: 27-2023 | H15: أعمدة وجرابات | I15: 0.7 | J15: =IFERROR(VLOOKUP($H15&$I15,'النسب '!$A$2:$E$143,5,0),"") -> 24500 | K15: 2450 | L15: 1225 | M15: 20825
A16: 2023-07-23 | B16: 2023-07-23 | C16: حسن محمود قطب | D16: 1 | E16: 12 | F16: 7 | G16: 42-2023 | H16: أعمدة وجرابات | I16: 0.9 | J16: =IFERROR(VLOOKUP($H16&$I16,'النسب '!$A$2:$E$143,5,0),"") -> 31500 | K16: 3150 | L16: 1575 | M16: 26775
A17: 2023-06-21 | B17: 2023-06-21 | C17: عبد الرحمن محمد سيد | D17: 1 | E17: 11 | F17: 3 | G17: 36-2023 | H17: مجارى مطر وكمر وتدعيمات | I17: 0.8 | J17: =IFERROR(VLOOKUP($H17&$I17,'النسب '!$A$2:$E$143,5,0),"") -> 25600 | K17: 2560 | L17: 1280 | M17: 21760
A18: 2023-06-21 | B18: 2023-06-21 | C18: احمد عبد العزيز | D18: 1 | E18: 3 | F18: 2 | G18: 29-2023 | H18: أعمدة وجرابات | I18: 1 | J18: =IFERROR(VLOOKUP($H18&$I18,'النسب '!$A$2:$E$143,5,0),"") -> 35000 | K18: 3500 | L18: 1750 | M18: 29750
A19: 2023-06-21 | B19: 2023-06-21 | C19: احمد عبد العزيز | D19: 1 | E19: 3 | F19: 2 | G19: 29-2023 | H19: مجارى مطر وكمر وتدعيمات | I19: 1 | J19: =IFERROR(VLOOKUP($H19&$I19,'النسب '!$A$2:$E$143,5,0),"") -> 32000 | K19: 3200 | L19: 1600 | M19: 27200
A20: 2023-06-21 | B20: 2023-06-21 | C20: احمد عبد العزيز | D20: 1 | E20: 3 | F20: 2 | G20: 29-2023 | H20: الاقواس والمدادات | I20: 0.9 | J20: =IFERROR(VLOOKUP($H20&$I20,'النسب '!$A$2:$E$143,5,0),"") -> 37800 | K20: 3780 | L20: 1890 | M20: 32130
A21: 2023-07-16 | B21: 2023-07-16 | C21: احمد عبد العزيز | D21: 2 | E21: 3 | F21: 2 | G21: 29-2023 | H21: حامل ثمار | I21: 0.5 | J21: =IFERROR(VLOOKUP($H21&$I21,'النسب '!$A$2:$E$143,5,0),"") -> 5000 | K21: 500 | L21: 250 | M21: 4250
A22: 2023-06-21 | B22: 2023-06-21 | C22: احمد عبد العزيز | D22: 1 | E22: 5 | F22: 3 | G22: 37-2023 | H22: أعمدة وجرابات | I22: 1 | J22: =IFERROR(VLOOKUP($H22&$I22,'النسب '!$A$2:$E$143,5,0),"") -> 35000 | K22: 3500 | L22: 1750 | M22: 29750
A23: 2023-05-31 | B23: 2023-05-31 | C23: هانى عبد المنجى احمد | D23: 1 | E23: 2 | F23: 4 | G23: 8-2023 | H23: مجارى مطر وكمر وتدعيمات | I23: 1 | J23: =IFERROR(VLOOKUP($H23&$I23,'النسب '!$A$2:$E$143,5,0),"") -> 32000 | K23: 3200 | L23: 1600 | M23: 27200
A24: 2023-05-31 | B24: 2023-05-31 | C24: هانى عبد المنجى احمد | D24: 1 | E24: 2 | F24: 1 | G24: 9-2023 | H24: أعمدة وجرابات | I24: 1 | J24: =IFERROR(VLOOKUP($H24&$I24,'النسب '!$A$2:$E$143,5,0),"") -> 35000 | K24: 3500 | L24: 1750 | M24: 29750
A25: 2023-05-31 | B25: 2023-05-31 | C25: هانى عبد المنجى احمد | D25: 1 | E25: 2 | F25: 2 | G25: 9-2023 | H25: أعمدة وجرابات | I25: 1 | J25: =IFERROR(VLOOKUP($H25&$I25,'النسب '!$A$2:$E$143,5,0),"") -> 35000 | K25: 3500 | L25: 1750 | M25: 29750
A26: 2023-05-31 | B26: 2023-05-31 | C26: هانى عبد المنجى احمد | D26: 1 | E26: 2 | F26: 3 | G26: 9-2023 | H26: أعمدة وجرابات | I26: 1 | J26: =IFERROR(VLOOKUP($H26&$I26,'النسب '!$A$2:$E$143,5,0),"") -> 35000 | K26: 3500 | L26: 1750 | M26: 29750
A27: 2023-05-31 | B27: 2023-05-31 | C27: هانى عبد المنجى احمد | D27: 1 | E27: 2 | F27: 4 | G27: 9-2023 | H27: أعمدة وجرابات | I27: 1 | J27: =IFERROR(VLOOKUP($H27&$I27,'النسب '!$A$2:$E$143,5,0),"") -> 35000 | K27: 3500 | L27: 1750 | M27: 29750
A28: 2023-05-31 | B28: 2023-05-31 | C28: هانى عبد المنجى احمد | D28: 1 | E28: 2 | F28: 6 | G28: 9-2023 | H28: أعمدة وجرابات | I28: 0.5 | J28: =IFERROR(VLOOKUP($H28&$I28,'النسب '!$A$2:$E$143,5,0),"") -> 17500 | K28: 1750 | L28: 875 | M28: 14875
A29: 2023-05-31 | B29: 2023-05-31 | C29: هانى عبد المنجى احمد | D29: 1 | E29: 2 | F29: 7 | G29: 13-2023 | H29: أعمدة وجرابات | I29: 0.5 | J29: =IFERROR(VLOOKUP($H29&$I29,'النسب '!$A$2:$E$143,5,0),"") -> 17500 | K29: 1750 | L29: 875 | M29: 14875
A30: 2023-06-20 | B30: 2023-06-20 | C30: هانى عبد المنجى احمد | D30: 1 | E30: 1 | F30: 5 | G30: 19-2023 | H30: أعمدة وجرابات | I30: 1 | J30: =IFERROR(VLOOKUP($H30&$I30,'النسب '!$A$2:$E$143,5,0),"") -> 35000 | K30: 3500 | L30: 1750 | M30: 29750
A31: 2023-07-16 | B31: 2023-07-16 | C31: ياسين خيرت عبد الله | D31: 2 | E31: 12 | F31: 2 | G31: 33-2023 | H31: مجارى مطر وكمر وتدعيمات | I31: 0.35 | J31: =IFERROR(VLOOKUP($H31&$I31,'النسب '!$A$2:$E$143,5,0),"") -> 11200 | K31: 1120 | L31: 560 | M31: 9520
A32: 2023-07-16 | B32: 2023-07-16 | C32: ياسين خيرت عبد الله | D32: 1 | E32: 4 | F32: 7 | G32: 49-2023 | H32: مجارى مطر وكمر وتدعيمات | I32: 0.8 | J32: =IFERROR(VLOOKUP($H32&$I32,'النسب '!$A$2:$E$143,5,0),"") -> 25600 | K32: 2560 | L32: 1280 | M32: 21760
A33: 2023-06-20 | B33: 2023-06-20 | C33: هانى عبد المنجى احمد | D33: 1 | E33: 3 | F33: 1 | G33: 20-2023 | H33: مجارى مطر وكمر وتدعيمات | I33: 0.6 | J33: =IFERROR(VLOOKUP($H33&$I33,'النسب '!$A$2:$E$143,5,0),"") -> 19200 | K33: 1920 | L33: 960 | M33: 16320
A34: 2023-07-16 | B34: 2023-07-16 | C34: هانى عبد المنجى احمد | D34: 1 | E34: 11 | F34: 6 | G34: 35-2023 | H34: أعمدة وجرابات | I34: 1 | J34: 50000 | K34: 5000 | L34: 2500 | M34: 42500
A35: 2023-07-16 | B35: 2023-07-16 | C35: هانى عبد المنجى احمد | D35: 1 | E35: 11 | F35: 7 | G35: 35-2023 | H35: أعمدة وجرابات | I35: 1 | J35: 50000 | K35: 5000 | L35: 2500 | M35: 42500
A36: 2023-07-16 | B36: 2023-07-16 | C36: هانى عبد المنجى احمد | D36: 1 | E36: 11 | F36: 7 | G36: 35-2023 | H36: مجارى مطر وكمر وتدعيمات | I36: 0.8 | J36: =IFERROR(VLOOKUP($H36&$I36,'النسب '!$A$2:$E$143,5,0),"") -> 25600 | K36: 2560 | L36: 1280 | M36: 21760
A37: 2023-07-16 | B37: 2023-07-16 | C37: هانى عبد المنجى احمد | D37: 1 | E37: 11 | F37: 7 | G37: 35-2023 | H37: الاقواس والمدادات | I37: 0.5 | J37: =IFERROR(VLOOKUP($H37&$I37,'النسب '!$A$2:$E$143,5,0),"") -> 21000 | K37: 2100 | L37: 1050 | M37: 17850
A38: 2023-07-16 | B38: 2023-07-16 | C38: هانى عبد المنجى احمد | D38: 1 | E38: 11 | F38: 8 | G38: 35-2023 | H38: مجارى مطر وكمر وتدعيمات | I38: 0.75 | J38: =IFERROR(VLOOKUP($H38&$I38,'النسب '!$A$2:$E$143,5,0),"") -> 24000 | K38: 2400 | L38: 1200 | M38: 20400
A39: 2023-07-16 | B39: 2023-07-16 | C39: هانى عبد المنجى احمد | D39: 1 | E39: 11 | F39: 8 | G39: 35-2023 | H39: الاقواس والمدادات | I39: 0.1 | J39: =IFERROR(VLOOKUP($H39&$I39,'النسب '!$A$2:$E$143,5,0),"") -> 4200 | K39: 420 | L39: 210 | M39: 3570
A40: 2023-06-21 | B40: 2023-06-21 | C40: هانى عبد المنجى احمد | D40: 1 | E40: 11 | F40: 8 | G40: 35-2028 | H40: أعمدة وجرابات | I40: 1 | J40: 50000 | K40: 5000 | L40: 2500 | M40: 42500 | Q40: 55555
A41: 2023-06-06 | B41: 2023-06-06 | C41: هانى عبد المنجى احمد | D41: 2 | E41: 2 | F41: 4 | G41: 12-2023 | H41: الاقواس والمدادات | I41: 0.7 | J41: =IFERROR(VLOOKUP($H41&$I41,'النسب '!$A$2:$E$143,5,0),"") -> 29400 | K41: 2940 | L41: 1470 | M41: 24990
A42: 2023-06-20 | B42: 2023-06-20 | C42: هانى عبد المنجى احمد | D42: 2 | E42: 2 | F42: 6 | G42: 12-2023 | H42: أعمدة وجرابات | I42: 0.5 | J42: =IFERROR(VLOOKUP($H42&$I42,'النسب '!$A$2:$E$143,5,0),"") -> 17500 | K42: 1750 | L42: 875 | M42: 14875
A43: 2023-06-20 | B43: 2023-06-20 | C43: هانى عبد المنجى احمد | D43: 2 | E43: 2 | F43: 7 | G43: 13-2023 | H43: أعمدة وجرابات | I43: 0.5 | J43: =IFERROR(VLOOKUP($H43&$I43,'النسب '!$A$2:$E$143,5,0),"") -> 17500 | K43: 1750 | L43: 875 | M43: 14875
A44: 2023-06-20 | B44: 2023-06-20 | C44: هانى عبد المنجى احمد | D44: 1 | E44: 1 | F44: 5 | G44: 19-2023 | H44: مجارى مطر وكمر وتدعيمات | I44: 0.8 | J44: =IFERROR(VLOOKUP($H44&$I44,'النسب '!$A$2:$E$143,5,0),"") -> 25600 | K44: 2560 | L44: 1280 | M44: 21760
A45: 2023-07-16 | B45: 2023-07-16 | C45: هانى عبد المنجى احمد | D45: 2 | E45: 3 | F45: 1 | G45: 20-2023 | H45: مجارى مطر وكمر وتدعيمات | I45: 0.3 | J45: =IFERROR(VLOOKUP($H45&$I45,'النسب '!$A$2:$E$143,5,0),"") -> 9600 | K45: 960 | L45: 480 | M45: 8160
A46: 2023-07-16 | B46: 2023-07-16 | C46: هانى عبد المنجى احمد | D46: 2 | E46: 3 | F46: 1 | G46: 20-2023 | H46: الاقواس والمدادات | I46: 0.9 | J46: =IFERROR(VLOOKUP($H46&$I46,'النسب '!$A$2:$E$143,5,0),"") -> 37800 | K46: 3780 | L46: 1890 | M46: 32130
A47: 2023-07-16 | B47: 2023-07-16 | C47: هانى عبد المنجى احمد | D47: 2 | E47: 3 | F47: 1 | G47: 20-2023 | H47: حامل ثمار | I47: 0.4 | J47: =IFERROR(VLOOKUP($H47&$I47,'النسب '!$A$2:$E$143,5,0),"") -> 4000 | K47: 400 | L47: 200 | M47: 3400
A48: 2023-06-07 | B48: 2023-06-07 | C48: حسن محمود قطب | D48: 1 | E48: 3 | F48: 3 | G48: 18-2023 | H48: أعمدة وجرابات | I48: 1 | J48: =IFERROR(VLOOKUP($H48&$I48,'النسب '!$A$2:$E$143,5,0),"") -> 35000 | K48: 3500 | L48: 1750 | M48: 29750
A49: 2023-06-07 | B49: 2023-06-07 | C49: حسن محمود قطب | D49: 1 | E49: 3 | F49: 4 | G49: 18-2023 | H49: أعمدة وجرابات | I49: 0.4 | J49: =IFERROR(VLOOKUP($H49&$I49,'النسب '!$A$2:$E$143,5,0),"") -> 14000 | K49: 1400 | L49: 700 | M49: 11900
A50: 2023-06-21 | B50: 2023-06-21 | C50: حسن محمود قطب | D50: 1 | E50: 12 | F50: 5 | G50: 42-2023 | H50: أعمدة وجرابات | I50: 1 | J50: =IFERROR(VLOOKUP($H50&$I50,'النسب '!$A$2:$E$143,5,0),"") -> 35000 | K50: 3500 | L50: 1750 | M50: 29750
A51: 2023-06-21 | B51: 2023-06-21 | C51: حسن محمود قطب | D51: 1 | E51: 12 | F51: 6 | G51: 42-2023 | H51: أعمدة وجرابات | I51: 0.6 | J51: =IFERROR(VLOOKUP($H51&$I51,'النسب '!$A$2:$E$143,5,0),"") -> 21000 | K51: 2100 | L51: 1050 | M51: 17850
A52: 2023-06-17 | B52: 2023-06-17 | C52: حسن محمود قطب | D52: 2 | E52: 3 | F52: 4 | G52: 18-2023 | H52: أعمدة وجرابات | I52: 0.6 | J52: =IFERROR(VLOOKUP($H52&$I52,'النسب '!$A$2:$E$143,5,0),"") -> 21000 | K52: 2100 | L52: 1050 | M52: 17850
A53: 2023-06-21 | B53: 2023-06-21 | C53: خالد محمد محمد السيد | D53: 1 | E53: 6 | F53: 1 | G53: 30-2023 | H53: مجارى مطر وكمر وتدعيمات | I53: 0.85 | J53: =IFERROR(VLOOKUP($H53&$I53,'النسب '!$A$2:$E$143,5,0),"") -> 27200 | K53: 0 | L53: 1360 | M53: 25840
A54: 2023-07-08 | B54: 2023-07-08 | C54: خالد محمد محمد السيد | D54: 2 | E54: 6 | F54: 5 | G54: 30-2023 | H54: أعمدة وجرابات | I54: 0.5 | J54: 25000 | K54: 0 | L54: 1250 | M54: 23750
A55: 2023-07-08 | B55: 2023-07-08 | C55: خالد محمد محمد السيد | D55: 1 | E55: 6 | F55: 6 | G55: 30-2023 | H55: أعمدة وجرابات | I55: 0.5 | J55: 25000 | K55: 0 | L55: 1250 | M55: 23750
A56: 2023-06-21 | B56: 2023-06-21 | C56: خالد محمد محمد السيد | D56: 1 | E56: 6 | F56: 5 | G56: 30-2023 | H56: أعمدة وجرابات | I56: 0.5 | J56: 25000 | K56: 0 | L56: 1250 | M56: 23750
A57: 2023-06-21 | B57: 2023-06-21 | C57: خالد محمد محمد السيد | D57: 1 | E57: 6 | F57: 2 | G57: 30-2023 | H57: أعمدة وجرابات | I57: 1 | J57: 50000 | K57: 0 | L57: 2500 | M57: 47500
A58: 2023-07-08 | B58: 2023-07-08 | C58: خالد محمد محمد السيد | D58: 1 | E58: 6 | F58: 2 | G58: 30-2023 | H58: مجارى مطر وكمر وتدعيمات | I58: 0.8 | J58: =IFERROR(VLOOKUP($H58&$I58,'النسب '!$A$2:$E$143,5,0),"") -> 25600 | K58: 0 | L58: 1280 | M58: 24320
A59: 2023-06-21 | B59: 2023-06-21 | C59: خالد محمد محمد السيد | D59: 1 | E59: 6 | F59: 3 | G59: 30-2023 | H59: مجارى مطر وكمر وتدعيمات | I59: 1 | J59: 50000 | K59: 0 | L59: 2500 | M59: 47500
A60: 2023-06-21 | B60: 2023-06-21 | C60: خالد محمد محمد السيد | D60: 1 | E60: 6 | F60: 3 | G60: 30-2023 | H60: مجارى مطر وكمر وتدعيمات | I60: 0.4 | J60: =IFERROR(VLOOKUP($H60&$I60,'النسب '!$A$2:$E$143,5,0),"") -> 12800 | K60: 0 | L60: 640 | M60: 12160
A61: 2023-07-08 | B61: 2023-07-08 | C61: خالد محمد محمد السيد | D61: 1 | E61: 6 | F61: 4 | G61: 30-2023 | H61: أعمدة وجرابات | I61: 1 | J61: 50000 | K61: 0 | L61: 2500 | M61: 47500
A62: 2023-06-21 | B62: 2023-06-21 | C62: خالد محمد محمد السيد | D62: 1 | E62: 6 | F62: 1 | G62: 30-2023 | H62: أعمدة وجرابات | I62: 1 | J62: 50000 | K62: 0 | L62: 2500 | M62: 47500
A63: 2023-06-17 | B63: 2023-06-17 | C63: رجب أحمد محمد | D63: 1 | E63: 1 | F63: 1 | G63: 15-2023 | H63: أعمدة وجرابات | I63: 1 | J63: =IFERROR(VLOOKUP($H63&$I63,'النسب '!$A$2:$E$143,5,0),"") -> 35000 | K63: 3500 | L63: 1750 | M63: 29750
A64: 2023-06-21 | B64: 2023-06-21 | C64: رجب أحمد محمد | D64: 1 | E64: 5 | F64: 7 | G64: 39-2023 | H64: أعمدة وجرابات | I64: 1 | J64: =IFERROR(VLOOKUP($H64&$I64,'النسب '!$A$2:$E$143,5,0),"") -> 35000 | K64: 3500 | L64: 1750 | M64: 29750 | N64: =15000*60/100 -> 9000
A65: 2023-07-16 | B65: 2023-07-16 | C65: رجب أحمد محمد | D65: 1 | E65: 5 | F65: 8 | G65: 39-2023 | H65: أعمدة وجرابات | I65: 1 | J65: =IFERROR(VLOOKUP($H65&$I65,'النسب '!$A$2:$E$143,5,0),"") -> 35000 | K65: 3500 | L65: 1750 | M65: 29750
A66: 2023-06-04 | B66: 2023-06-04 | C66: رمضان على محمد | D66: 1 | E66: 2 | F66: 5 | G66: 11-2023 | H66: أعمدة وجرابات | I66: 1 | J66: =IFERROR(VLOOKUP($H66&$I66,'النسب '!$A$2:$E$143,5,0),"") -> 35000 | K66: 3500 | L66: 1750 | M66: 29750
A67: 2023-06-15 | B67: 2023-06-15 | C67: رمضان على محمد | D67: 1 | E67: 1 | F67: 8 | G67: 31-2023 | H67: أعمدة وجرابات | I67: 1 | J67: =IFERROR(VLOOKUP($H67&$I67,'النسب '!$A$2:$E$143,5,0),"") -> 35000 | K67: 3500 | L67: 1750 | M67: 29750
A68: 2023-06-20 | B68: 2023-06-20 | C68: رمضان على محمد | D68: 1 | E68: 1 | F68: 8 | G68: 31-2023 | H68: مجارى مطر وكمر وتدعيمات | I68: 0.8 | J68: =IFERROR(VLOOKUP($H68&$I68,'النسب '!$A$2:$E$143,5,0),"") -> 25600 | K68: 2560 | L68: 1280 | M68: 21760
A69: 2023-06-21 | B69: 2023-06-21 | C69: رمضان على محمد | D69: 1 | E69: 5 | F69: 6 | G69: 38-2023 | H69: أعمدة وجرابات | I69: 0.3 | J69: =IFERROR(VLOOKUP($H69&$I69,'النسب '!$A$2:$E$143,5,0),"") -> 10500 | K69: 1050 | L69: 525 | M69: 8925
A70: =+B70 -> 2023-07-16 | B70: 2023-07-16 | C70: رمضان على محمد | D70: 1 | E70: 5 | F70: 5 | G70: 38-2023 | H70: أعمدة وجرابات | I70: 0.1 | J70: =IFERROR(VLOOKUP($H70&$I70,'النسب '!$A$2:$E$143,5,0),"") -> 3500 | K70: 350 | L70: 175 | M70: 2975
A71: 2023-07-16 | B71: 2023-07-16 | C71: رمضان على محمد | D71: 2 | E71: 5 | F71: 6 | G71: 38-2023 | H71: أعمدة وجرابات | I71: 0.7 | J71: =IFERROR(VLOOKUP($H71&$I71,'النسب '!$A$2:$E$143,5,0),"") -> 24500 | K71: =IFERROR(IF(J70<>"",J71*$K$1,""),"") -> 2450 | L71: =IFERROR(IF(K70<>"",J71*$L$1,""),"") -> 1225 | M71: =IFERROR(IF(J71<>"",J71-K71-L71,""),"") -> 20825
A72: 2023-07-16 | B72: 2023-07-16 | C72: رمضان على محمد | D72: 2 | E72: 1 | F72: 8 | G72: 31-2023 | H72: مجارى مطر وكمر وتدعيمات | I72: 0.2 | J72: =IFERROR(VLOOKUP($H72&$I72,'النسب '!$A$2:$E$143,5,0),"") -> 6400 | K72: 640 | L72: 320 | M72: 5440
A73: 2023-07-16 | B73: 2023-07-16 | C73: رمضان على محمد | D73: 2 | E73: 1 | F73: 8 | G73: 31-2023 | H73: الاقواس والمدادات | I73: 1 | J73: =IFERROR(VLOOKUP($H73&$I73,'النسب '!$A$2:$E$143,5,0),"") -> 42000 | K73: 4200 | L73: 2100 | M73: 35700
A74: 2023-07-16 | B74: 2023-07-16 | C74: رمضان على محمد | D74: 2 | E74: 1 | F74: 8 | G74: 31-2023 | H74: حامل ثمار | I74: 0.5 | J74: =IFERROR(VLOOKUP($H74&$I74,'النسب '!$A$2:$E$143,5,0),"") -> 5000 | K74: 500 | L74: 250 | M74: 4250
A75: 2023-07-16 | B75: 2023-07-16 | C75: رمضان على محمد | D75: 1 | E75: 5 | F75: 6 | G75: 44-2023 | H75: مجارى مطر وكمر وتدعيمات | I75: 0.7 | J75: =IFERROR(VLOOKUP($H75&$I75,'النسب '!$A$2:$E$143,5,0),"") -> 22400 | K75: 2240 | L75: 1120 | M75: 19040
A76: 2023-06-24 | B76: 2023-06-24 | C76: رمضان على محمد | D76: 1 | E76: 5 | F76: 5 | G76: 44-2023 | H76: مجارى مطر وكمر وتدعيمات | I76: 0.8 | J76: =IFERROR(VLOOKUP($H76&$I76,'النسب '!$A$2:$E$143,5,0),"") -> 25600 | K76: 2560 | L76: 1280 | M76: 21760
A77: 2023-07-16 | B77: 2023-07-16 | C77: رمضان على محمد | D77: 1 | E77: 16 | F77: 2 | G77: 48-2023 | H77: أعمدة وجرابات | I77: 1 | J77: =IFERROR(VLOOKUP($H77&$I77,'النسب '!$A$2:$E$143,5,0),"") -> 35000 | K77: 3500 | L77: 1750 | M77: 29750
A78: 2023-07-16 | B78: 2023-07-16 | C78: رمضان على محمد | D78: 2 | E78: 5 | F78: 5 | G78: 44-2023 | H78: الاقواس والمدادات | I78: 0.75 | J78: =IFERROR(VLOOKUP($H78&$I78,'النسب '!$A$2:$E$143,5,0),"") -> 31500 | K78: 3150 | L78: 1575 | M78: 26775
A79: 2023-06-21 | B79: 2023-06-21 | C79: رمضان على محمد | D79: 1 | E79: 5 | F79: 5 | G79: 38-2023 | H79: أعمدة وجرابات | I79: 0.9 | J79: =IFERROR(VLOOKUP($H79&$I79,'النسب '!$A$2:$E$143,5,0),"") -> 31500 | K79: 3150 | L79: 1575 | M79: 26775
A80: 2023-06-21 | B80: 2023-06-21 | C80: صفوت السيد عطية | D80: 1 | E80: 12 | F80: 3 | G80: 43-2023 | H80: أعمدة وجرابات | I80: 0.7 | J80: =IFERROR(VLOOKUP($H80&$I80,'النسب '!$A$2:$E$143,5,0),"") -> 24500 | K80: 2450 | L80: 1225 | M80: 20825
A81: 2023-06-06 | B81: 2023-06-06 | C81: صفوت السيد عطية | D81: 1 | E81: 3 | F81: 1 | G81: 10-2023 | H81: أعمدة وجرابات | I81: 1 | J81: =IFERROR(VLOOKUP($H81&$I81,'النسب '!$A$2:$E$143,5,0),"") -> 35000 | K81: 3500 | L81: 1750 | M81: 29750
A82: 2023-06-23 | B82: 2023-06-23 | C82: عبد الرحمن محمد سيد | D82: 1 | E82: 11 | F82: 4 | G82: 36-2023 | H82: مجارى مطر وكمر وتدعيمات | I82: 0.2 | J82: =IFERROR(VLOOKUP($H82&$I82,'النسب '!$A$2:$E$143,5,0),"") -> 6400 | K82: 640 | L82: 320 | M82: 5440
A83: 2023-06-21 | B83: 2023-06-21 | C83: عبد الرحمن محمد سيد | D83: 1 | E83: 11 | F83: 2 | G83: 36-2023 | H83: مجارى مطر وكمر وتدعيمات | I83: 0.8 | J83: =IFERROR(VLOOKUP($H83&$I83,'النسب '!$A$2:$E$143,5,0),"") -> 25600 | K83: 2560 | L83: 1280 | M83: 21760
A84: 2023-06-17 | B84: 2023-06-17 | C84: عبد الرحمن محمد سيد | D84: 1 | E84: 2 | F84: 7 | G84: 6-2023 | H84: مجارى مطر وكمر وتدعيمات | I84: 0.2 | J84: =IFERROR(VLOOKUP($H84&$I84,'النسب '!$A$2:$E$143,5,0),"") -> 6400 | K84: 640 | L84: 320 | M84: 5440
A85: 2023-06-17 | B85: 2023-06-17 | C85: عبد الرحمن محمد سيد | D85: 1 | E85: 2 | F85: 7 | G85: 6-2023 | H85: الاقواس والمدادات | I85: 0.9 | J85: =IFERROR(VLOOKUP($H85&$I85,'النسب '!$A$2:$E$143,5,0),"") -> 37800 | K85: 3780 | L85: 1890 | M85: 32130
A86: 2023-07-15 | B86: 2023-07-15 | C86: عبد الرحمن محمد سيد | D86: 2 | E86: 11 | F86: 2 | G86: 36-2023 | H86: مجارى مطر وكمر وتدعيمات | I86: 0.05 | J86: =IFERROR(VLOOKUP($H86&$I86,'النسب '!$A$2:$E$143,5,0),"") -> 1600 | K86: 160 | L86: 80 | M86: 1360
A87: 2023-07-15 | B87: 2023-07-15 | C87: عبد الرحمن محمد سيد | D87: 2 | E87: 11 | F87: 2 | G87: 36-2023 | H87: الاقواس والمدادات | I87: 0.65 | J87: =IFERROR(VLOOKUP($H87&$I87,'النسب '!$A$2:$E$143,5,0),"") -> 27300 | K87: 2730 | L87: 1365 | M87: 23205
A88: 2023-07-15 | B88: 2023-07-15 | C88: عبد الرحمن محمد سيد | D88: 2 | E88: 11 | F88: 2 | G88: 36-2023 | H88: حامل ثمار | I88: 0.3 | J88: =IFERROR(VLOOKUP($H88&$I88,'النسب '!$A$2:$E$143,5,0),"") -> 3000 | K88: 300 | L88: 150 | M88: 2550
A89: 2023-07-15 | B89: 2023-07-15 | C89: عبد الرحمن محمد سيد | D89: 2 | E89: 11 | F89: 4 | G89: 36-2023 | H89: مجارى مطر وكمر وتدعيمات | I89: 0.55 | J89: =IFERROR(VLOOKUP($H89&$I89,'النسب '!$A$2:$E$143,5,0),"") -> 17600 | K89: 1760 | L89: 880 | M89: 14960
A90: 2023-07-15 | B90: 2023-07-15 | C90: عبد الرحمن محمد سيد | D90: 2 | E90: 11 | F90: 4 | G90: 36-2023 | H90: الاقواس والمدادات | I90: 0.65 | J90: =IFERROR(VLOOKUP($H90&$I90,'النسب '!$A$2:$E$143,5,0),"") -> 27300 | K90: 2730 | L90: 1365 | M90: 23205
A91: 2023-07-15 | B91: 2023-07-15 | C91: عبد الرحمن محمد سيد | D91: 2 | E91: 11 | F91: 4 | G91: 36-2023 | H91: حامل ثمار | I91: 0.3 | J91: =IFERROR(VLOOKUP($H91&$I91,'النسب '!$A$2:$E$143,5,0),"") -> 3000 | K91: 300 | L91: 150 | M91: 2550
A92: 2023-07-16 | B92: 2023-07-16 | C92: عبد الرحمن محمد سيد | D92: 3 | E92: 2 | F92: 7 | G92: 6-2023 | H92: حامل ثمار | I92: 0.4 | J92: =IFERROR(VLOOKUP($H92&$I92,'النسب '!$A$2:$E$143,5,0),"") -> 4000 | K92: 400 | L92: 200 | M92: 3400
A93: 2023-06-06 | B93: 2023-06-06 | C93: عبد الرحمن محمد سيد | D93: 1 | E93: 2 | F93: 7 | G93: 6-2023 | H93: مجارى مطر وكمر وتدعيمات | I93: 0.8 | J93: =IFERROR(VLOOKUP($H93&$I93,'النسب '!$A$2:$E$143,5,0),"") -> 25600 | K93: 2560 | L93: 1280 | M93: 21760
A94: 2023-07-15 | B94: 2023-07-15 | C94: عبد الرحمن محمد سيد | D94: 1 | E94: 11 | F94: 3 | G94: 36-2023 | H94: حامل ثمار | I94: 0.3 | J94: =IFERROR(VLOOKUP($H94&$I94,'النسب '!$A$2:$E$143,5,0),"") -> 3000 | K94: 300 | L94: 150 | M94: 2550
A95: 2023-06-06 | B95: 2023-06-06 | C95: عبد الغفار عادل عبد الغفار | D95: 1 | E95: 2 | F95: 5 | G95: 16-2023 | H95: مجارى مطر وكمر وتدعيمات | I95: 0.8 | J95: =IFERROR(VLOOKUP($H95&$I95,'النسب '!$A$2:$E$143,5,0),"") -> 25600 | K95: 2560 | L95: 1280 | M95: 21760
A96: 2023-07-17 | B96: 2023-07-17 | C96: عبد الغفار عادل عبد الغفار | D96: 1 | E96: 12 | F96: 4 | G96: 53-2023 | H96: مجارى مطر وكمر وتدعيمات | I96: 0.6 | J96: =IFERROR(VLOOKUP($H96&$I96,'النسب '!$A$2:$E$143,5,0),"") -> 19200 | K96: 1920 | L96: 960 | M96: 16320
A97: 2023-07-17 | B97: 2023-07-17 | C97: عبد الغفار عادل عبد الغفار | D97: 1 | E97: 12 | F97: 3 | G97: 53-2023 | H97: مجارى مطر وكمر وتدعيمات | I97: 0.4 | J97: =IFERROR(VLOOKUP($H97&$I97,'النسب '!$A$2:$E$143,5,0),"") -> 12800 | K97: 1280 | L97: 640 | M97: 10880
A98: 2023-06-17 | B98: 2023-06-17 | C98: عبد الغفار عادل عبد الغفار | D98: 2 | E98: 2 | F98: 5 | G98: 16-2023 | H98: مجارى مطر وكمر وتدعيمات | I98: 0.2 | J98: =IFERROR(VLOOKUP($H98&$I98,'النسب '!$A$2:$E$143,5,0),"") -> 6400 | K98: 640 | L98: 320 | M98: 5440
A99: 2023-06-17 | B99: 2023-06-17 | C99: عبد الغفار عادل عبد الغفار | D99: 2 | E99: 2 | F99: 5 | G99: 16-2023 | H99: الاقواس والمدادات | I99: 0.9 | J99: =IFERROR(VLOOKUP($H99&$I99,'النسب '!$A$2:$E$143,5,0),"") -> 37800 | K99: 3780 | L99: 1890 | M99: 32130
A100: 2023-07-17 | B100: 2023-07-17 | C100: عبد الله عبد النبى | D100: 1 | E100: 1 | F100: 7 | G100: 27-2023 | H100: مجارى مطر وكمر وتدعيمات | I100: 0.5 | J100: =IFERROR(VLOOKUP($H100&$I100,'النسب '!$A$2:$E$143,5,0),"") -> 16000 | K100: 1600 | L100: 800 | M100: 13600
A101: 2023-07-17 | B101: 2023-07-17 | C101: عبد الله عبد النبى | D101: 2 | E101: 2 | F101: 8 | G101: 17-2023 | H101: الاقواس والمدادات | I101: 0.4 | J101: =IFERROR(VLOOKUP($H101&$I101,'النسب '!$A$2:$E$143,5,0),"") -> 16800 | K101: 1680 | L101: 840 | M101: 14280
A102: 2023-07-21 | B102: 2023-07-21 | C102: عبد الله عبد النبى | D102: 2 | E102: 2 | F102: 6 | G102: 26-2023 | H102: مجارى مطر وكمر وتدعيمات | I102: 0.6 | J102: =IFERROR(VLOOKUP($H102&$I102,'النسب '!$A$2:$E$143,5,0),"") -> 19200 | K102: 1920 | L102: 960 | M102: 16320
A103: 2023-06-21 | B103: 2023-06-21 | C103: عبد الله عبد النبى | D103: 2 | E103: 2 | F103: 6 | G103: 26-2023 | H103: الاقواس والمدادات | I103: 0.4 | J103: =IFERROR(VLOOKUP($H103&$I103,'النسب '!$A$2:$E$143,5,0),"") -> 16800 | K103: 1680 | L103: 840 | M103: 14280
A104: 2023-07-17 | B104: 2023-07-17 | C104: عبد الله عبد النبى | D104: 3 | E104: 2 | F104: 6 | G104: 26-2023 | H104: الاقواس والمدادات | I104: 0.4 | J104: =IFERROR(VLOOKUP($H104&$I104,'النسب '!$A$2:$E$143,5,0),"") -> 16800 | K104: 1680 | L104: 840 | M104: 14280
A105: 2023-06-06 | B105: 2023-06-06 | C105: عبد الله عبد النبى | D105: 1 | E105: 2 | F105: 6 | G105: 26-2023 | H105: مجارى مطر وكمر وتدعيمات | I105: 0.4 | J105: =IFERROR(VLOOKUP($H105&$I105,'النسب '!$A$2:$E$143,5,0),"") -> 12800 | K105: 1280 | L105: 640 | M105: 10880
A106: 2023-06-21 | B106: 2023-06-21 | C106: عبد الله عبد النبى | D106: 1 | E106: 2 | F106: 8 | G106: 17-2023 | H106: أعمدة وجرابات | I106: 1 | J106: =IFERROR(VLOOKUP($H106&$I106,'النسب '!$A$2:$E$143,5,0),"") -> 35000 | K106: 3500 | L106: 1750 | M106: 29750
A107: 2023-06-21 | B107: 2023-06-21 | C107: عبد الله عبد النبى | D107: 1 | E107: 2 | F107: 8 | G107: 17-2023 | H107: مجارى مطر وكمر وتدعيمات | I107: 0.8 | J107: =IFERROR(VLOOKUP($H107&$I107,'النسب '!$A$2:$E$143,5,0),"") -> 25600 | K107: 2560 | L107: 1280 | M107: 21760
A108: 2023-06-21 | B108: 2023-06-21 | C108: فتحى محمد عبد العزيز | D108: 1 | E108: 3 | F108: 3 | G108: 24-2023 | H108: مجارى مطر وكمر وتدعيمات | I108: 1 | J108: =IFERROR(VLOOKUP($H108&$I108,'النسب '!$A$2:$E$143,5,0),"") -> 32000 | K108: 3200 | L108: 1600 | M108: 27200
A109: 2023-06-21 | B109: 2023-06-21 | C109: فتحى محمد عبد العزيز | D109: 1 | E109: 3 | F109: 3 | G109: 24-2023 | H109: الاقواس والمدادات | I109: 0.5 | J109: =IFERROR(VLOOKUP($H109&$I109,'النسب '!$A$2:$E$143,5,0),"") -> 21000 | K109: 2100 | L109: 1050 | M109: 17850
A110: 2023-06-21 | B110: 2023-06-21 | C110: فتحى محمد عبد العزيز | D110: 1 | E110: 3 | F110: 4 | G110: 24-2023 | H110: مجارى مطر وكمر وتدعيمات | I110: 1 | J110: =IFERROR(VLOOKUP($H110&$I110,'النسب '!$A$2:$E$143,5,0),"") -> 32000 | K110: 3200 | L110: 1600 | M110: 27200
A111: 2023-06-21 | B111: 2023-06-21 | C111: فتحى محمد عبد العزيز | D111: 1 | E111: 3 | F111: 4 | G111: 24-2023 | H111: الاقواس والمدادات | I111: 0.9 | J111: =IFERROR(VLOOKUP($H111&$I111,'النسب '!$A$2:$E$143,5,0),"") -> 37800 | K111: 3780 | L111: 1890 | M111: 32130
A112: 2023-07-16 | B112: 2023-07-16 | C112: فتحى محمد عبد العزيز | D112: 1 | E112: 12 | F112: 5 | G112: 24-2023 | H112: مجارى مطر وكمر وتدعيمات | I112: 0.8 | J112: =IFERROR(VLOOKUP($H112&$I112,'النسب '!$A$2:$E$143,5,0),"") -> 25600 | K112: 2560 | L112: 1280 | M112: 21760
A113: 2023-07-16 | B113: 2023-07-16 | C113: فتحى محمد عبد العزيز | D113: 1 | E113: 12 | F113: 5 | G113: 24-2023 | H113: الاقواس والمدادات | I113: 0.8 | J113: =IFERROR(VLOOKUP($H113&$I113,'النسب '!$A$2:$E$143,5,0),"") -> 33600 | K113: 3360 | L113: 1680 | M113: 28560
A114: 2023-07-16 | B114: 2023-07-16 | C114: فتحى محمد عبد العزيز | D114: 2 | E114: 3 | F114: 3 | G114: 24-2023 | H114: الاقواس والمدادات | I114: 0.4 | J114: =IFERROR(VLOOKUP($H114&$I114,'النسب '!$A$2:$E$143,5,0),"") -> 16800 | K114: 1680 | L114: 840 | M114: 14280
A115: 2023-07-16 | B115: 2023-07-16 | C115: فتحى محمد عبد العزيز | D115: 2 | E115: 3 | F115: 4 | G115: 24-2023 | H115: حامل ثمار | I115: 0.5 | J115: =IFERROR(VLOOKUP($H115&$I115,'النسب '!$A$2:$E$143,5,0),"") -> 5000 | K115: 500 | L115: 250 | M115: 4250
A116: 2023-06-03 | B116: 2023-06-03 | C116: ماجد إبراهيم عبد المجيد | D116: 1 | E116: 2 | F116: 1 | G116: 3-2023 | H116: مجارى مطر وكمر وتدعيمات | I116: 1 | J116: =IFERROR(VLOOKUP($H116&$I116,'النسب '!$A$2:$E$143,5,0),"") -> 32000 | K116: 3200 | L116: 1600 | M116: 27200
A117: 2023-07-16 | B117: 2023-07-16 | C117: ماجد إبراهيم عبد المجيد | D117: 1 | E117: 5 | F117: 7 | G117: 46-2023 | H117: مجارى مطر وكمر وتدعيمات | I117: 0.9 | J117: =IFERROR(VLOOKUP($H117&$I117,'النسب '!$A$2:$E$143,5,0),"") -> 28800 | K117: 2880 | L117: 1440 | M117: 24480
A118: 2023-06-21 | B118: 2023-06-21 | C118: ماجد إبراهيم عبد المجيد | D118: 2 | E118: 2 | F118: 1 | G118: 3-2023 | H118: الاقواس والمدادات | I118: 1 | J118: =IFERROR(VLOOKUP($H118&$I118,'النسب '!$A$2:$E$143,5,0),"") -> 42000 | K118: 4200 | L118: 2100 | M118: 35700
A119: 2023-06-21 | B119: 2023-06-21 | C119: ماجد إبراهيم عبد المجيد | D119: 2 | E119: 2 | F119: 1 | G119: 3-2023 | H119: حامل ثمار | I119: 0.5 | J119: =IFERROR(VLOOKUP($H119&$I119,'النسب '!$A$2:$E$143,5,0),"") -> 5000 | K119: 500 | L119: 250 | M119: 4250
A120: 2023-06-03 | B120: 2023-06-03 | C120: محمد سعداوى أنور | D120: 1 | E120: 2 | F120: 3 | G120: 14-2023 | H120: مجارى مطر وكمر وتدعيمات | I120: 1 | J120: =IFERROR(VLOOKUP($H120&$I120,'النسب '!$A$2:$E$143,5,0),"") -> 32000 | K120: 3200 | L120: 1600 | M120: 27200
A121: 2023-06-21 | B121: 2023-06-21 | C121: محمد سعداوى أنور | D121: 1 | E121: 1 | F121: 6 | G121: 25-2023 | H121: أعمدة وجرابات | I121: 1 | J121: =IFERROR(VLOOKUP($H121&$I121,'النسب '!$A$2:$E$143,5,0),"") -> 35000 | K121: 3500 | L121: 1750 | M121: 29750
A122: 2023-06-21 | B122: 2023-06-21 | C122: محمد سعداوى أنور | D122: 1 | E122: 1 | F122: 6 | G122: 26-2023 | H122: مجارى مطر وكمر وتدعيمات | I122: 0.8 | J122: =IFERROR(VLOOKUP($H122&$I122,'النسب '!$A$2:$E$143,5,0),"") -> 25600 | K122: 2560 | L122: 1280 | M122: 21760
A123: 2023-06-21 | B123: 2023-06-21 | C123: محمد سعداوى أنور | D123: 2 | E123: 2 | F123: 3 | G123: 14-2023 | H123: الاقواس والمدادات | I123: 0.9 | J123: =IFERROR(VLOOKUP($H123&$I123,'النسب '!$A$2:$E$143,5,0),"") -> 37800 | K123: 3780 | L123: 1890 | M123: 32130
A124: 2023-07-17 | B124: 2023-07-17 | C124: محمد إسماعيل عبد العظيم | D124: 1 | E124: 13 | F124: 2 | G124: 41-2023 | H124: أعمدة وجرابات | I124: 1 | J124: =IFERROR(VLOOKUP($H124&$I124,'النسب '!$A$2:$E$143,5,0),"") -> 35000 | K124: 3500 | L124: 1750 | M124: 29750
A125: 2023-07-17 | B125: 2023-07-17 | C125: محمد إسماعيل عبد العظيم | D125: 1 | E125: 13 | F125: 2 | G125: 41-2023 | H125: مجارى مطر وكمر وتدعيمات | I125: 0.2 | J125: =IFERROR(VLOOKUP($H125&$I125,'النسب '!$A$2:$E$143,5,0),"") -> 6400 | K125: 640 | L125: 320 | M125: 5440
A126: 2023-06-21 | B126: 2023-06-21 | C126: محمد عبد اللطيف إبراهيم | D126: 1 | E126: 1 | F126: 4 | G126: 21-2023 | H126: أعمدة وجرابات | I126: 1 | J126: =IFERROR(VLOOKUP($H126&$I126,'النسب '!$A$2:$E$143,5,0),"") -> 35000 | K126: 3500 | L126: 1750 | M126: 29750
A127: 2023-06-21 | B127: 2023-06-21 | C127: محمد عبد اللطيف إبراهيم | D127: 1 | E127: 1 | F127: 3 | G127: 21-2023 | H127: أعمدة وجرابات | I127: 1 | J127: =IFERROR(VLOOKUP($H127&$I127,'النسب '!$A$2:$E$143,5,0),"") -> 35000 | K127: 3500 | L127: 1750 | M127: 29750
A128: 2023-06-21 | B128: 2023-06-21 | C128: محمد عبد اللطيف إبراهيم | D128: 1 | E128: 1 | F128: 3 | G128: 21-2023 | H128: مجارى مطر وكمر وتدعيمات | I128: 0.9 | J128: =IFERROR(VLOOKUP($H128&$I128,'النسب '!$A$2:$E$143,5,0),"") -> 28800 | K128: 2880 | L128: 1440 | M128: 24480
A129: 2023-06-21 | B129: 2023-06-21 | C129: محمد عبد اللطيف إبراهيم | D129: 1 | E129: 1 | F129: 3 | G129: 21-2023 | H129: الاقواس والمدادات | I129: 0.8 | J129: =IFERROR(VLOOKUP($H129&$I129,'النسب '!$A$2:$E$143,5,0),"") -> 33600 | K129: 3360 | L129: 1680 | M129: 28560
A130: 2023-07-17 | B130: 2023-07-17 | C130: محمد عبد اللطيف إبراهيم | D130: 1 | E130: 1 | F130: 4 | G130: 21-2023 | H130: مجارى مطر وكمر وتدعيمات | I130: 0.2 | J130: =IFERROR(VLOOKUP($H130&$I130,'النسب '!$A$2:$E$143,5,0),"") -> 6400 | K130: 640 | L130: 320 | M130: 5440
A131: 2023-06-21 | B131: 2023-06-21 | C131: محمد عبد اللطيف إبراهيم | D131: 1 | E131: 1 | F131: 2 | G131: 21-2023 | H131: أعمدة وجرابات | I131: 1 | J131: =IFERROR(VLOOKUP($H131&$I131,'النسب '!$A$2:$E$143,5,0),"") -> 35000 | K131: 3500 | L131: 1750 | M131: 29750
A132: 2023-06-21 | B132: 2023-06-21 | C132: محمد عبد اللطيف إبراهيم | D132: 1 | E132: 1 | F132: 2 | G132: 21-2023 | H132: مجارى مطر وكمر وتدعيمات | I132: 0.7 | J132: =IFERROR(VLOOKUP($H132&$I132,'النسب '!$A$2:$E$143,5,0),"") -> 22400 | K132: 2240 | L132: 1120 | M132: 19040
A133: 2023-06-21 | B133: 2023-06-21 | C133: محمد عبد اللطيف إبراهيم | D133: 1 | E133: 1 | F133: 2 | G133: 21-2023 | H133: الاقواس والمدادات | I133: 0.1 | J133: =IFERROR(VLOOKUP($H133&$I133,'النسب '!$A$2:$E$143,5,0),"") -> 4200 | K133: 420 | L133: 210 | M133: 3570
A134: =+B134 -> 2023-05-31 | B134: 2023-05-31 | C134: محمد ناجى إسماعيل | D134: 1 | E134: 2 | F134: 2 | G134: 4-2023 | H134: مجارى مطر وكمر وتدعيمات | I134: 1 | J134: =IFERROR(VLOOKUP($H134&$I134,'النسب '!$A$2:$E$143,5,0),"") -> 32000 | K134: 3200 | L134: 1600 | M134: 27200
A135: 2023-06-21 | B135: 2023-06-21 | C135: محمد ناجى إسماعيل | D135: 1 | E135: 1 | F135: 1 | G135: 5-2023 | H135: مجارى مطر وكمر وتدعيمات | I135: 0.8 | J135: =IFERROR(VLOOKUP($H135&$I135,'النسب '!$A$2:$E$143,5,0),"") -> 25600 | K135: =IFERROR(IF(J134<>"",J135*$K$1,""),"") -> 2560 | L135: =IFERROR(IF(K134<>"",J135*$L$1,""),"") -> 1280 | M135: =IFERROR(IF(J135<>"",J135-K135-L135,""),"") -> 21760
A136: 2023-06-21 | B136: 2023-06-21 | C136: محمد ناجى إسماعيل | D136: 1 | E136: 1 | F136: 1 | G136: 5-2023 | H136: الاقواس والمدادات | I136: 0.15 | J136: =IFERROR(VLOOKUP($H136&$I136,'النسب '!$A$2:$E$143,5,0),"") -> 6300 | K136: 630 | L136: 315 | M136: 5355
A137: 2023-06-21 | B137: 2023-06-21 | C137: محمد ناجى إسماعيل | D137: 1 | E137: 1 | F137: 1 | G137: 5-2023 | H137: الاقواس والمدادات | I137: 0.35 | J137: =IFERROR(VLOOKUP($H137&$I137,'النسب '!$A$2:$E$143,5,0),"") -> 14700 | K137: 1470 | L137: 735 | M137: 12495
A138: 2023-06-21 | B138: 2023-06-21 | C138: محمد ناجى إسماعيل | D138: 1 | E138: 2 | F138: 2 | G138: 4-2023 | H138: الاقواس والمدادات | I138: 0.4 | J138: =IFERROR(VLOOKUP($H138&$I138,'النسب '!$A$2:$E$143,5,0),"") -> 16800 | K138: 1680 | L138: 840 | M138: 14280
A139: 2023-06-21 | B139: 2023-06-21 | C139: محمد ناجى إسماعيل | D139: 1 | E139: 2 | F139: 2 | G139: 4-2023 | H139: الاقواس والمدادات | I139: 0.6 | J139: =IFERROR(VLOOKUP($H139&$I139,'النسب '!$A$2:$E$143,5,0),"") -> 25200 | K139: 2520 | L139: 1260 | M139: 21420
A140: 2023-06-21 | B140: 2023-06-21 | C140: ياسين خيرت عبد الله | D140: 1 | E140: 12 | F140: 2 | G140: 33-2023 | H140: مجارى مطر وكمر وتدعيمات | I140: 0.55 | J140: =IFERROR(VLOOKUP($H140&$I140,'النسب '!$A$2:$E$143,5,0),"") -> 17600 | K140: 1760 | L140: 880 | M140: 14960
A141: 2023-07-16 | B141: 2023-07-16 | C141: ياسين خيرت عبد الله | D141: 2 | E141: 12 | F141: 2 | G141: 33-2023 | H141: مجارى مطر وكمر وتدعيمات | I141: 0.35 | J141: =IFERROR(VLOOKUP($H141&$I141,'النسب '!$A$2:$E$143,5,0),"") -> 11200 | K141: 1120 | L141: 560 | M141: 9520
A142: 2023-07-16 | B142: 2023-07-16 | C142: ياسين خيرت عبد الله | D142: 1 | E142: 4 | F142: 7 | G142: 49-2023 | H142: مجارى مطر وكمر وتدعيمات | I142: 0.8 | J142: =IFERROR(VLOOKUP($H142&$I142,'النسب '!$A$2:$E$143,5,0),"") -> 25600 | K142: 2560 | L142: 1280 | M142: 21760
A143: 2023-07-23 | B143: 2023-07-23 | C143: حسن محمود قطب | D143: 1 | E143: 12 | F143: 4 | G143: 42-2023 | H143: أعمدة وجرابات | I143: 0.9 | J143: =IFERROR(VLOOKUP($H143&$I143,'النسب '!$A$2:$E$143,5,0),"") -> 31500 | K143: 3150 | L143: 1575 | M143: 26775
A144: 00:00:00 | J144: =IFERROR(VLOOKUP($H144&$I144,'النسب '!$A$2:$E$143,5,0),"") -> 
A145: 00:00:00 | J145: =IFERROR(VLOOKUP($H145&$I145,'النسب '!$A$2:$E$143,5,0),"") -> 
A146: 00:00:00 | J146: =IFERROR(VLOOKUP($H146&$I146,'النسب '!$A$2:$E$143,5,0),"") -> 
A147: 00:00:00 | J147: =IFERROR(VLOOKUP($H147&$I147,'النسب '!$A$2:$E$143,5,0),"") -> 
A148: 00:00:00 | J148: =IFERROR(VLOOKUP($H148&$I148,'النسب '!$A$2:$E$143,5,0),"") -> 
A149: 00:00:00 | J149: =IFERROR(VLOOKUP($H149&$I149,'النسب '!$A$2:$E$143,5,0),"") -> 
A150: 00:00:00 | J150: =IFERROR(VLOOKUP($H150&$I150,'النسب '!$A$2:$E$143,5,0),"") ->  | O150: =292750-307700 -> -14950
A151: 00:00:00 | J151: =IFERROR(VLOOKUP($H151&$I151,'النسب '!$A$2:$E$143,5,0),"") -> 
A152: 00:00:00 | J152: =IFERROR(VLOOKUP($H152&$I152,'النسب '!$A$2:$E$143,5,0),"") -> 
A153: 00:00:00 | J153: =IFERROR(VLOOKUP($H153&$I153,'النسب '!$A$2:$E$143,5,0),"") -> 
A154: 00:00:00 | J154: =IFERROR(VLOOKUP($H154&$I154,'النسب '!$A$2:$E$143,5,0),"") -> 
A155: 00:00:00 | J155: =IFERROR(VLOOKUP($H155&$I155,'النسب '!$A$2:$E$143,5,0),"") -> 
A156: 00:00:00 | J156: =IFERROR(VLOOKUP($H156&$I156,'النسب '!$A$2:$E$143,5,0),"") -> 
A157: 00:00:00 | J157: =IFERROR(VLOOKUP($H157&$I157,'النسب '!$A$2:$E$143,5,0),"") -> 
A158: 00:00:00 | J158: =IFERROR(VLOOKUP($H158&$I158,'النسب '!$A$2:$E$143,5,0),"") -> 
A159: 00:00:00 | J159: =IFERROR(VLOOKUP($H159&$I159,'النسب '!$A$2:$E$143,5,0),"") -> 
A160: 00:00:00 | J160: =IFERROR(VLOOKUP($H160&$I160,'النسب '!$A$2:$E$143,5,0),"") -> 
A161: 00:00:00 | J161: =IFERROR(VLOOKUP($H161&$I161,'النسب '!$A$2:$E$143,5,0),"") -> 
A162: 00:00:00 | J162: =IFERROR(VLOOKUP($H162&$I162,'النسب '!$A$2:$E$143,5,0),"") -> 
A163: 00:00:00 | J163: =IFERROR(VLOOKUP($H163&$I163,'النسب '!$A$2:$E$143,5,0),"") -> 
A164: 00:00:00 | J164: =IFERROR(VLOOKUP($H164&$I164,'النسب '!$A$2:$E$143,5,0),"") -> 
A165: 00:00:00 | J165: =IFERROR(VLOOKUP($H165&$I165,'النسب '!$A$2:$E$143,5,0),"") -> 
A166: 00:00:00 | J166: =IFERROR(VLOOKUP($H166&$I166,'النسب '!$A$2:$E$143,5,0),"") -> 
A167: 00:00:00 | J167: =IFERROR(VLOOKUP($H167&$I167,'النسب '!$A$2:$E$143,5,0),"") -> 
A168: 00:00:00 | J168: =IFERROR(VLOOKUP($H168&$I168,'النسب '!$A$2:$E$143,5,0),"") -> 
A169: 00:00:00 | J169: =IFERROR(VLOOKUP($H169&$I169,'النسب '!$A$2:$E$143,5,0),"") -> 
A170: 00:00:00 | J170: =IFERROR(VLOOKUP($H170&$I170,'النسب '!$A$2:$E$143,5,0),"") -> 
A171: 00:00:00 | J171: =IFERROR(VLOOKUP($H171&$I171,'النسب '!$A$2:$E$143,5,0),"") -> 
A172: 00:00:00 | J172: =IFERROR(VLOOKUP($H172&$I172,'النسب '!$A$2:$E$143,5,0),"") -> 
A173: 00:00:00 | J173: =IFERROR(VLOOKUP($H173&$I173,'النسب '!$A$2:$E$143,5,0),"") -> 
A174: 00:00:00 | J174: =IFERROR(VLOOKUP($H174&$I174,'النسب '!$A$2:$E$143,5,0),"") -> 
A175: 00:00:00 | J175: =IFERROR(VLOOKUP($H175&$I175,'النسب '!$A$2:$E$143,5,0),"") -> 
A176: 00:00:00 | J176: =IFERROR(VLOOKUP($H176&$I176,'النسب '!$A$2:$E$143,5,0),"") -> 
A177: 00:00:00 | J177: =IFERROR(VLOOKUP($H177&$I177,'النسب '!$A$2:$E$143,5,0),"") -> 
A178: 00:00:00 | J178: =IFERROR(VLOOKUP($H178&$I178,'النسب '!$A$2:$E$143,5,0),"") -> 
A179: 00:00:00 | J179: =IFERROR(VLOOKUP($H179&$I179,'النسب '!$A$2:$E$143,5,0),"") -> 
A180: 00:00:00 | J180: =IFERROR(VLOOKUP($H180&$I180,'النسب '!$A$2:$E$143,5,0),"") -> 
A181: 00:00:00 | J181: =IFERROR(VLOOKUP($H181&$I181,'النسب '!$A$2:$E$143,5,0),"") -> 
A182: 00:00:00 | J182: =IFERROR(VLOOKUP($H182&$I182,'النسب '!$A$2:$E$143,5,0),"") -> 
A183: 00:00:00 | J183: =IFERROR(VLOOKUP($H183&$I183,'النسب '!$A$2:$E$143,5,0),"") -> 
A184: 00:00:00 | J184: =IFERROR(VLOOKUP($H184&$I184,'النسب '!$A$2:$E$143,5,0),"") -> 
A185: 00:00:00 | J185: =IFERROR(VLOOKUP($H185&$I185,'النسب '!$A$2:$E$143,5,0),"") -> 
A186: 00:00:00 | J186: =IFERROR(VLOOKUP($H186&$I186,'النسب '!$A$2:$E$143,5,0),"") -> 
A187: 00:00:00 | J187: =IFERROR(VLOOKUP($H187&$I187,'النسب '!$A$2:$E$143,5,0),"") -> 
A188: 00:00:00 | J188: =IFERROR(VLOOKUP($H188&$I188,'النسب '!$A$2:$E$143,5,0),"") -> 
A189: 00:00:00 | J189: =IFERROR(VLOOKUP($H189&$I189,'النسب '!$A$2:$E$143,5,0),"") -> 
A190: 00:00:00 | J190: =IFERROR(VLOOKUP($H190&$I190,'النسب '!$A$2:$E$143,5,0),"") -> 
A191: 00:00:00 | J191: =IFERROR(VLOOKUP($H191&$I191,'النسب '!$A$2:$E$143,5,0),"") -> 
A192: 00:00:00 | J192: =IFERROR(VLOOKUP($H192&$I192,'النسب '!$A$2:$E$143,5,0),"") -> 
A193: 00:00:00 | J193: =IFERROR(VLOOKUP($H193&$I193,'النسب '!$A$2:$E$143,5,0),"") -> 
A194: 00:00:00 | J194: =IFERROR(VLOOKUP($H194&$I194,'النسب '!$A$2:$E$143,5,0),"") -> 
A195: 00:00:00 | J195: =IFERROR(VLOOKUP($H195&$I195,'النسب '!$A$2:$E$143,5,0),"") -> 
A196: 00:00:00 | J196: =IFERROR(VLOOKUP($H196&$I196,'النسب '!$A$2:$E$143,5,0),"") -> 
A197: 00:00:00 | J197: =IFERROR(VLOOKUP($H197&$I197,'النسب '!$A$2:$E$143,5,0),"") -> 
A198: =+B198 -> 00:00:00 | J198: =IFERROR(VLOOKUP($H198&$I198,'النسب '!$A$2:$E$143,5,0),"") -> 
A199: 00:00:00 | J199: =IFERROR(VLOOKUP($H199&$I199,'النسب '!$A$2:$E$143,5,0),"") ->  | K199: =IFERROR(IF(J198<>"",J199*$K$1,""),"") ->  | L199: =IFERROR(IF(K198<>"",J199*$L$1,""),"") ->  | M199: =IFERROR(IF(J199<>"",J199-K199-L199,""),"") -> 
A200: 00:00:00 | J200: =IFERROR(VLOOKUP($H200&$I200,'النسب '!$A$2:$E$143,5,0),"") -> 
... 911 more rows

Sheet تفرير
B2: تقرير النسب والمبلغ خلال العمليات للمقولين | K2: =+K4/J4*100 -> 10 | L2: =+L4/J4*100/100 -> 0.05
H3: البيان | I3: النسبة | J3: القيمة المستحقة | K3: تامين | L3: بيت | M3: الصافى
B4: المقاول | C4: العملية | D4: الكلاستر | E4: الصوبة | F4: رقم العقد | H4: الاجمالى القيمة | I4: =SUBTOTAL(9,I10:I5000) -> 5.9 | J4: =SUBTOTAL(9,J10:J5000) -> 203800 | K4: 20380 | L4: 10190 | M4: 173230
B5: فتحى محمد عبد العزيز
E6: المبلغ | F6: =NoToTxt(M4,"جنيها","قرش") -> فقط مائة وثلاثة وسبعون ألف ومائتان وثلاثون جنيها
A9: م | B9: التاريخ | C9: المقاول | D9: رقم الجارى | E9: الكلاستر | F9: الصوبة | G9: رقم العقد | H9: العملية | I9: النسبة | J9: القيمة المستحقة | K9: تامين10% | L9: بيت5% | M9: الصافى
A10: =IFERROR(IF(B10<>"",SUBTOTAL(3,$B$10:B10),""),"") -> 1 | B10: 2023-06-21 | C10: فتحى محمد عبد العزيز | D10: 1 | E10: 3 | F10: 3 | G10: 24-2023 | H10: الاقواس والمدادات | I10: 0.5 | J10: 21000 | K10: 2100 | L10: 1050 | M10: 17850
A11: =IFERROR(IF(B11<>"",SUBTOTAL(3,$B$10:B11),""),"") -> 2 | B11: 2023-06-21 | C11: فتحى محمد عبد العزيز | D11: 1 | E11: 3 | F11: 4 | G11: 24-2023 | H11: الاقواس والمدادات | I11: 0.9 | J11: 37800 | K11: 3780 | L11: 1890 | M11: 32130
A12: =IFERROR(IF(B12<>"",SUBTOTAL(3,$B$10:B12),""),"") -> 3 | B12: 2023-07-16 | C12: فتحى محمد عبد العزيز | D12: 2 | E12: 3 | F12: 3 | G12: 24-2023 | H12: الاقواس والمدادات | I12: 0.4 | J12: 16800 | K12: 1680 | L12: 840 | M12: 14280
A13: =IFERROR(IF(B13<>"",SUBTOTAL(3,$B$10:B13),""),"") -> 4 | B13: 2023-07-16 | C13: فتحى محمد عبد العزيز | D13: 2 | E13: 3 | F13: 4 | G13: 24-2023 | H13: حامل ثمار | I13: 0.5 | J13: 5000 | K13: 500 | L13: 250 | M13: 4250
A14: =IFERROR(IF(B14<>"",SUBTOTAL(3,$B$10:B14),""),"") -> 5 | B14: 2023-06-21 | C14: فتحى محمد عبد العزيز | D14: 1 | E14: 3 | F14: 3 | G14: 24-2023 | H14: مجارى مطر وكمر وتدعيمات | I14: 1 | J14: 32000 | K14: 3200 | L14: 1600 | M14: 27200
A15: =IFERROR(IF(B15<>"",SUBTOTAL(3,$B$10:B15),""),"") -> 6 | B15: 2023-06-21 | C15: فتحى محمد عبد العزيز | D15: 1 | E15: 3 | F15: 4 | G15: 24-2023 | H15: مجارى مطر وكمر وتدعيمات | I15: 1 | J15: 32000 | K15: 3200 | L15: 1600 | M15: 27200
A16: =IFERROR(IF(B16<>"",SUBTOTAL(3,$B$10:B16),""),"") -> 7 | B16: 2023-07-16 | C16: فتحى محمد عبد العزيز | D16: 1 | E16: 12 | F16: 5 | G16: 24-2023 | H16: الاقواس والمدادات | I16: 0.8 | J16: 33600 | K16: 3360 | L16: 1680 | M16: 28560
A17: =IFERROR(IF(B17<>"",SUBTOTAL(3,$B$10:B17),""),"") -> 8 | B17: 2023-07-16 | C17: فتحى محمد عبد العزيز | D17: 1 | E17: 12 | F17: 5 | G17: 24-2023 | H17: مجارى مطر وكمر وتدعيمات | I17: 0.8 | J17: 25600 | K17: 2560 | L17: 1280 | M17: 21760
A18: =IFERROR(IF(B18<>"",SUBTOTAL(3,$B$10:B18),""),"") -> 
A19: =IFERROR(IF(B19<>"",SUBTOTAL(3,$B$10:B19),""),"") -> 
A20: =IFERROR(IF(B20<>"",SUBTOTAL(3,$B$10:B20),""),"") -> 
A21: =IFERROR(IF(B21<>"",SUBTOTAL(3,$B$10:B21),""),"") -> 
A22: =IFERROR(IF(B22<>"",SUBTOTAL(3,$B$10:B22),""),"") -> 
A23: =IFERROR(IF(B23<>"",SUBTOTAL(3,$B$10:B23),""),"") -> 
A24: =IFERROR(IF(B24<>"",SUBTOTAL(3,$B$10:B24),""),"") -> 
A25: =IFERROR(IF(B25<>"",SUBTOTAL(3,$B$10:B25),""),"") -> 
A26: =IFERROR(IF(B26<>"",SUBTOTAL(3,$B$10:B26),""),"") -> 
A27: =IFERROR(IF(B27<>"",SUBTOTAL(3,$B$10:B27),""),"") -> 
A28: =IFERROR(IF(B28<>"",SUBTOTAL(3,$B$10:B28),""),"") -> 
A29: =IFERROR(IF(B29<>"",SUBTOTAL(3,$B$10:B29),""),"") -> 
A30: =IFERROR(IF(B30<>"",SUBTOTAL(3,$B$10:B30),""),"") -> 
A31: =IFERROR(IF(B31<>"",SUBTOTAL(3,$B$10:B31),""),"") -> 
A32: =IFERROR(IF(B32<>"",SUBTOTAL(3,$B$10:B32),""),"") -> 
A33: =IFERROR(IF(B33<>"",SUBTOTAL(3,$B$10:B33),""),"") -> 
A34: =IFERROR(IF(B34<>"",SUBTOTAL(3,$B$10:B34),""),"") -> 
A35: =IFERROR(IF(B35<>"",SUBTOTAL(3,$B$10:B35),""),"") -> 
A36: =IFERROR(IF(B36<>"",SUBTOTAL(3,$B$10:B36),""),"") -> 
A37: =IFERROR(IF(B37<>"",SUBTOTAL(3,$B$10:B37),""),"") -> 
A38: =IFERROR(IF(B38<>"",SUBTOTAL(3,$B$10:B38),""),"") -> 
A39: =IFERROR(IF(B39<>"",SUBTOTAL(3,$B$10:B39),""),"") -> 
A40: =IFERROR(IF(B40<>"",SUBTOTAL(3,$B$10:B40),""),"") -> 
A41: =IFERROR(IF(B41<>"",SUBTOTAL(3,$B$10:B41),""),"") -> 
A42: =IFERROR(IF(B42<>"",SUBTOTAL(3,$B$10:B42),""),"") -> 
A43: =IFERROR(IF(B43<>"",SUBTOTAL(3,$B$10:B43),""),"") -> 
A44: =IFERROR(IF(B44<>"",SUBTOTAL(3,$B$10:B44),""),"") -> 
A45: =IFERROR(IF(B45<>"",SUBTOTAL(3,$B$10:B45),""),"") -> 
A46: =IFERROR(IF(B46<>"",SUBTOTAL(3,$B$10:B46),""),"") -> 
A47: =IFERROR(IF(B47<>"",SUBTOTAL(3,$B$10:B47),""),"") -> 
A48: =IFERROR(IF(B48<>"",SUBTOTAL(3,$B$10:B48),""),"") -> 
A49: =IFERROR(IF(B49<>"",SUBTOTAL(3,$B$10:B49),""),"") -> 
A50: =IFERROR(IF(B50<>"",SUBTOTAL(3,$B$10:B50),""),"") -> 
A51: =IFERROR(IF(B51<>"",SUBTOTAL(3,$B$10:B51),""),"") -> 
A52: =IFERROR(IF(B52<>"",SUBTOTAL(3,$B$10:B52),""),"") -> 
A53: =IFERROR(IF(B53<>"",SUBTOTAL(3,$B$10:B53),""),"") -> 
A54: =IFERROR(IF(B54<>"",SUBTOTAL(3,$B$10:B54),""),"") -> 
A55: =IFERROR(IF(B55<>"",SUBTOTAL(3,$B$10:B55),""),"") -> 
A56: =IFERROR(IF(B56<>"",SUBTOTAL(3,$B$10:B56),""),"") -> 
A57: =IFERROR(IF(B57<>"",SUBTOTAL(3,$B$10:B57),""),"") -> 
A58: =IFERROR(IF(B58<>"",SUBTOTAL(3,$B$10:B58),""),"") -> 
A59: =IFERROR(IF(B59<>"",SUBTOTAL(3,$B$10:B59),""),"") -> 
A60: =IFERROR(IF(B60<>"",SUBTOTAL(3,$B$10:B60),""),"") -> 
A61: =IFERROR(IF(B61<>"",SUBTOTAL(3,$B$10:B61),""),"") -> 
A62: =IFERROR(IF(B62<>"",SUBTOTAL(3,$B$10:B62),""),"") -> 
A63: =IFERROR(IF(B63<>"",SUBTOTAL(3,$B$10:B63),""),"") -> 
A64: =IFERROR(IF(B64<>"",SUBTOTAL(3,$B$10:B64),""),"") -> 
A65: =IFERROR(IF(B65<>"",SUBTOTAL(3,$B$10:B65),""),"") -> 
A66: =IFERROR(IF(B66<>"",SUBTOTAL(3,$B$10:B66),""),"") -> 
A67: =IFERROR(IF(B67<>"",SUBTOTAL(3,$B$10:B67),""),"") -> 
A68: =IFERROR(IF(B68<>"",SUBTOTAL(3,$B$10:B68),""),"") -> 
A69: =IFERROR(IF(B69<>"",SUBTOTAL(3,$B$10:B69),""),"") -> 
A70: =IFERROR(IF(B70<>"",SUBTOTAL(3,$B$10:B70),""),"") -> 
A71: =IFERROR(IF(B71<>"",SUBTOTAL(3,$B$10:B71),""),"") -> 
A72: =IFERROR(IF(B72<>"",SUBTOTAL(3,$B$10:B72),""),"") -> 
A73: =IFERROR(IF(B73<>"",SUBTOTAL(3,$B$10:B73),""),"") -> 
A74: =IFERROR(IF(B74<>"",SUBTOTAL(3,$B$10:B74),""),"") -> 
A75: =IFERROR(IF(B75<>"",SUBTOTAL(3,$B$10:B75),""),"") -> 
A76: =IFERROR(IF(B76<>"",SUBTOTAL(3,$B$10:B76),""),"") -> 
A77: =IFERROR(IF(B77<>"",SUBTOTAL(3,$B$10:B77),""),"") -> 
A78: =IFERROR(IF(B78<>"",SUBTOTAL(3,$B$10:B78),""),"") -> 
A79: =IFERROR(IF(B79<>"",SUBTOTAL(3,$B$10:B79),""),"") -> 

Sheet النسب
F1: 100 | I1: 100 | L1: 100 | O1: 100 | R1: 100 | U1: 100 | AD1: 100 | AE1: 100 | AF1: 100 | AG1: 100 | AH1: 100 | AI1: 100
B3: رقم الكلاستر | C3: رقم الصوبه | D3: أعمدة وجربات | G3: مجاري المطر - كمر- تدعيم اكسات- تدعيم كهات | J3: البروفيل | M3: البوابات | P3: النهايز | S3: حامل الثمار | AD3: مجاري المطر - كمر- تدعيم اكسات- تدعيم كهات | AE3: الاقواس- المدادات | AF3: البروفيل | AG3: البوابات | AH3: النهايز | AI3: حامل الثمار
D4: نسبة سابقة | E4: نسبة حالية | F4: اجمالى النسبة | G4: نسبة سابقة | H4: نسبة حالية | I4: اجمالى النسبة | J4: نسبة سابقة | K4: نسبة حالية | L4: اجمالى النسبة | M4: نسبة سابقة | N4: نسبة حالية | O4: اجمالى النسبة | P4: نسبة سابقة | Q4: نسبة حالية | R4: اجمالى النسبة | S4: نسبة سابقة | T4: نسبة حالية | U4: اجمالى النسبة
A5: =+F5/$F$1 -> 0.002 | B5: E1 | C5: 1 | D5: 0.1 | E5: 0.1 | F5: =+D5+E5 -> 0.2 | G5: 0.5 | H5: 0.4 | I5: =+G5+H5 -> 0.9 | J5: 0.6 | K5: 0.3 | L5: =+J5+K5 -> 0.9 | O5: =+M5+N5 -> 0 | R5: =+P5+Q5 -> 0 | U5: =+S5+T5 -> 0 | X5: =+V5+W5 -> 0 | AD5: 0.2 | AE5: 0.3 | AF5: 0.4 | AG5: 0.5 | AH5: 0.5 | AI5: 1
C6: 2 | F6: =+D6+E6 -> 0 | I6: 0 | L6: 0 | O6: 0 | R6: 0 | U6: 0 | X6: 0 | AD6: 0.2 | AE6: 0.3 | AF6: 0.4 | AG6: 0.5 | AH6: 0.6 | AI6: 0.7
C7: 3 | F7: 0 | I7: 0 | L7: 0 | O7: 0 | R7: 0 | U7: 0 | X7: 0 | AD7: 0.2 | AE7: 0.3 | AF7: 0.4 | AG7: 0.5 | AH7: 0.6 | AI7: 0.7
C8: 4 | D8: 0.5 | E8: 0.2 | F8: 0.7 | I8: 0 | L8: 0 | O8: 0 | R8: 0 | U8: 0 | X8: 0 | AD8: 0.2 | AE8: 0.3 | AF8: 0.4 | AG8: 0.5 | AH8: 0.6 | AI8: 0.7
C9: 5 | F9: 0 | I9: 0 | L9: 0 | O9: 0 | P9: 0.9 | R9: 0.9 | S9: 0.1 | T9: 0.3 | U9: 0.4 | X9: 0 | AD9: 0.2 | AE9: 0.3 | AF9: 0.4 | AG9: 0.5 | AH9: 0.6 | AI9: 0.7
C10: 6 | F10: 0 | I10: 0 | L10: 0 | O10: 0 | P10: 0.2 | Q10: 0.8 | R10: 1 | T10: 0.7 | U10: 0.7 | X10: 0 | AD10: 0.2 | AE10: 0.3 | AF10: 0.4 | AG10: 0.5 | AH10: 0.6 | AI10: 0.7
C11: 7 | F11: 0 | I11: 0 | L11: 0 | O11: 0 | R11: 0 | U11: 0 | X11: 0 | AD11: 0.2 | AE11: 0.3 | AF11: 0.4 | AG11: 0.5 | AH11: 0.6 | AI11: 0.7
C12: 8 | F12: 0 | I12: 0 | L12: 0 | O12: 0 | R12: 0 | U12: 0 | X12: 0 | AD12: 0.2 | AE12: 0.3 | AF12: 0.4 | AG12: 0.5 | AH12: 0.6 | AI12: 0.7
B13: E2 | C13: 1 | F13: 0 | I13: 0 | L13: 0 | O13: 0 | R13: 0 | U13: 0 | X13: 0 | AD13: 0.2 | AE13: 0.3 | AF13: 0.4 | AG13: 0.5 | AH13: 0.6 | AI13: 0.7
C14: 2 | F14: 0 | I14: 0 | L14: 0 | O14: 0 | R14: 0 | U14: 0 | X14: 0 | AD14: 0.2 | AE14: 0.3 | AF14: 0.4 | AG14: 0.5 | AH14: 0.6 | AI14: 0.7
C15: 3 | F15: 0 | I15: 0 | L15: 0 | O15: 0 | R15: 0 | U15: 0 | X15: 0 | AD15: 0.2 | AE15: 0.3 | AF15: 0.4 | AG15: 0.5 | AH15: 0.6 | AI15: 0.7
C16: 4 | F16: 0 | I16: 0 | L16: 0 | O16: 0 | R16: 0 | U16: 0 | X16: 0 | AD16: 0.2 | AE16: 0.3 | AF16: 0.4 | AG16: 0.5 | AH16: 0.6 | AI16: 0.7
C17: 5 | F17: 0 | I17: 0 | L17: 0 | O17: 0 | R17: 0 | U17: 0 | X17: 0 | AD17: 0.2 | AE17: 0.3 | AF17: 0.4 | AG17: 0.5 | AH17: 0.6 | AI17: 0.7
C18: 6 | F18: 0 | I18: 0 | L18: 0 | O18: 0 | R18: 0 | U18: 0 | X18: 0 | AD18: 0.2 | AE18: 0.3 | AF18: 0.4 | AG18: 0.5 | AH18: 0.6 | AI18: 0.7
C19: 7 | F19: 0 | I19: 0 | L19: 0 | O19: 0 | R19: 0 | U19: 0 | X19: 0 | AD19: 0.2 | AE19: 0.3 | AF19: 0.4 | AG19: 0.5 | AH19: 0.6 | AI19: 0.7
C20: 8 | F20: 0 | I20: 0 | L20: 0 | O20: 0 | R20: 0 | U20: 0 | X20: 0 | AD20: 0.2 | AE20: 0.3 | AF20: 0.4 | AG20: 0.5 | AH20: 0.6 | AI20: 0.7
B21: E3 | C21: 1 | F21: 0 | I21: 0 | L21: 0 | O21: 0 | R21: 0 | U21: 0 | X21: 0 | AD21: 0.2 | AE21: 0.3 | AF21: 0.4 | AG21: 0.5 | AH21: 0.6 | AI21: 0.7
C22: 2 | F22: 0 | I22: 0 | L22: 0 | O22: 0 | R22: 0 | U22: 0 | X22: 0 | AD22: 0.2 | AE22: 0.3 | AF22: 0.4 | AG22: 0.5 | AH22: 0.6 | AI22: 0.7
C23: 3 | F23: 0 | I23: 0 | L23: 0 | O23: 0 | R23: 0 | U23: 0 | X23: 0 | AD23: 0.2 | AE23: 0.3 | AF23: 0.4 | AG23: 0.5 | AH23: 0.6 | AI23: 0.7
C24: 4 | F24: 0 | I24: 0 | L24: 0 | O24: 0 | R24: 0 | U24: 0 | X24: 0 | AD24: 0.2 | AE24: 0.3 | AF24: 0.4 | AG24: 0.5 | AH24: 0.6 | AI24: 0.7
B25: E4 | C25: 1 | F25: 0 | I25: 0 | L25: 0 | O25: 0 | R25: 0 | U25: 0 | X25: 0 | AD25: 0.2 | AE25: 0.3 | AF25: 0.4 | AG25: 0.5 | AH25: 0.6 | AI25: 0.7
C26: 2 | F26: 0 | I26: 0 | L26: 0 | O26: 0 | R26: 0 | U26: 0 | X26: 0 | AD26: 0.2 | AE26: 0.3 | AF26: 0.4 | AG26: 0.5 | AH26: 0.6 | AI26: 0.7
C27: 3 | F27: 0 | I27: 0 | L27: 0 | O27: 0 | R27: 0 | U27: 0 | X27: 0 | AD27: 0.2 | AE27: 0.3 | AF27: 0.4 | AG27: 0.5 | AH27: 0.6 | AI27: 0.7
C28: 4 | F28: 0 | I28: 0 | L28: 0 | O28: 0 | R28: 0 | U28: 0 | X28: 0 | AD28: 0.2 | AE28: 0.3 | AF28: 0.4 | AG28: 0.5 | AH28: 0.6 | AI28: 0.7
C29: 5 | F29: 0 | I29: 0 | L29: 0 | O29: 0 | R29: 0 | U29: 0 | X29: 0 | AD29: 0.2 | AE29: 0.3 | AF29: 0.4 | AG29: 0.5 | AH29: 0.6 | AI29: 0.7
C30: 6 | F30: 0 | I30: 0 | L30: 0 | O30: 0 | R30: 0 | U30: 0 | X30: 0 | AD30: 0.2 | AE30: 0.3 | AF30: 0.4 | AG30: 0.5 | AH30: 0.6 | AI30: 0.7
C31: 7 | F31: 0 | I31: 0 | L31: 0 | O31: 0 | R31: 0 | U31: 0 | X31: 0 | AD31: 0.2 | AE31: 0.3 | AF31: 0.4 | AG31: 0.5 | AH31: 0.6 | AI31: 0.7
B32: E5 | C32: 1 | F32: 0 | I32: 0 | L32: 0 | O32: 0 | R32: 0 | U32: 0 | X32: 0 | AD32: 0.2 | AE32: 0.3 | AF32: 0.4 | AG32: 0.5 | AH32: 0.6 | AI32: 0.7
C33: 2 | F33: 0 | I33: 0 | L33: 0 | O33: 0 | R33: 0 | U33: 0 | X33: 0 | AD33: 0.2 | AE33: 0.3 | AF33: 0.4 | AG33: 0.5 | AH33: 0.6 | AI33: 0.7
C34: 3 | F34: 0 | I34: 0 | L34: 0 | O34: 0 | R34: 0 | U34: 0 | X34: 0 | AD34: 0.2 | AE34: 0.3 | AF34: 0.4 | AG34: 0.5 | AH34: 0.6 | AI34: 0.7
C35: 4 | F35: 0 | I35: 0 | L35: 0 | O35: 0 | R35: 0 | U35: 0 | X35: 0 | AD35: 0.2 | AE35: 0.3 | AF35: 0.4 | AG35: 0.5 | AH35: 0.6 | AI35: 0.7
C36: 5 | F36: 0 | I36: 0 | L36: 0 | O36: 0 | R36: 0 | U36: 0 | X36: 0 | AD36: 0.2 | AE36: 0.3 | AF36: 0.4 | AG36: 0.5 | AH36: 0.6 | AI36: 0.7
C37: 6 | F37: 0 | I37: 0 | L37: 0 | O37: 0 | R37: 0 | U37: 0 | X37: 0 | AD37: 0.2 | AE37: 0.3 | AF37: 0.4 | AG37: 0.5 | AH37: 0.6 | AI37: 0.7
C38: 7 | F38: 0 | I38: 0 | L38: 0 | O38: 0 | R38: 0 | U38: 0 | X38: 0 | AD38: 0.2 | AE38: 0.3 | AF38: 0.4 | AG38: 0.5 | AH38: 0.6 | AI38: 0.7
C39: 8 | F39: 0 | I39: 0 | L39: 0 | O39: 0 | R39: 0 | U39: 0 | X39: 0 | AD39: 0.2 | AE39: 0.3 | AF39: 0.4 | AG39: 0.5 | AH39: 0.6 | AI39: 0.7
B40: E6 | C40: 1 | F40: 0 | I40: 0 | L40: 0 | O40: 0 | R40: 0 | U40: 0 | X40: 0 | AD40: 0.2 | AE40: 0.3 | AF40: 0.4 | AG40: 0.5 | AH40: 0.6 | AI40: 0.7
C41: 2 | F41: 0 | I41: 0 | L41: 0 | O41: 0 | R41: 0 | U41: 0 | X41: 0 | AD41: 0.2 | AE41: 0.3 | AF41: 0.4 | AG41: 0.5 | AH41: 0.6 | AI41: 0.7
C42: 3 | F42: 0 | I42: 0 | L42: 0 | O42: 0 | R42: 0 | U42: 0 | X42: 0 | AD42: 0.2 | AE42: 0.3 | AF42: 0.4 | AG42: 0.5 | AH42: 0.6 | AI42: 0.7
C43: 4 | F43: 0 | I43: 0 | L43: 0 | O43: 0 | R43: 0 | U43: 0 | X43: 0 | AD43: 0.2 | AE43: 0.3 | AF43: 0.4 | AG43: 0.5 | AH43: 0.6 | AI43: 0.7
C44: 5 | F44: 0 | I44: 0 | L44: 0 | O44: 0 | R44: 0 | U44: 0 | X44: 0 | AD44: 0.2 | AE44: 0.3 | AF44: 0.4 | AG44: 0.5 | AH44: 0.6 | AI44: 0.7
C45: 6 | F45: 0 | I45: 0 | L45: 0 | O45: 0 | R45: 0 | U45: 0 | X45: 0 | AD45: 0.2 | AE45: 0.3 | AF45: 0.4 | AG45: 0.5 | AH45: 0.6 | AI45: 0.7
C46: 7 | F46: 0 | I46: 0 | L46: 0 | O46: 0 | R46: 0 | U46: 0 | X46: 0 | AD46: 0.2 | AE46: 0.3 | AF46: 0.4 | AG46: 0.5 | AH46: 0.6 | AI46: 0.7
C47: 8 | F47: 0 | I47: 0 | L47: 0 | O47: 0 | R47: 0 | U47: 0 | X47: 0 | AD47: 0.2 | AE47: 0.3 | AF47: 0.4 | AG47: 0.5 | AH47: 0.6 | AI47: 0.7
B48: E7 | C48: 1 | F48: 0 | I48: 0 | L48: 0 | O48: 0 | R48: 0 | U48: 0 | X48: 0 | AD48: 0.2 | AE48: 0.3 | AF48: 0.4 | AG48: 0.5 | AH48: 0.6 | AI48: 0.7
C49: 2 | F49: 0 | I49: 0 | L49: 0 | O49: 0 | R49: 0 | U49: 0 | X49: 0 | AD49: 0.2 | AE49: 0.3 | AF49: 0.4 | AG49: 0.5 | AH49: 0.6 | AI49: 0.7
C50: 3 | F50: 0 | I50: 0 | L50: 0 | O50: 0 | R50: 0 | U50: 0 | X50: 0 | AD50: 0.2 | AE50: 0.3 | AF50: 0.4 | AG50: 0.5 | AH50: 0.6 | AI50: 0.7
C51: 4 | F51: 0 | I51: 0 | L51: 0 | O51: 0 | R51: 0 | U51: 0 | X51: 0 | AD51: 0.2 | AE51: 0.3 | AF51: 0.4 | AG51: 0.5 | AH51: 0.6 | AI51: 0.7
C52: 5 | F52: 0 | I52: 0 | L52: 0 | O52: 0 | R52: 0 | U52: 0 | X52: 0 | AD52: 0.2 | AE52: 0.3 | AF52: 0.4 | AG52: 0.5 | AH52: 0.6 | AI52: 0.7
C53: 6 | F53: 0 | I53: 0 | L53: 0 | O53: 0 | R53: 0 | U53: 0 | X53: 0 | AD53: 0.2 | AE53: 0.3 | AF53: 0.4 | AG53: 0.5 | AH53: 0.6 | AI53: 0.7
C54: 7 | F54: 0 | I54: 0 | L54: 0 | O54: 0 | R54: 0 | U54: 0 | X54: 0 | AD54: 0.2 | AE54: 0.3 | AF54: 0.4 | AG54: 0.5 | AH54: 0.6 | AI54: 0.7
C55: 8 | F55: 0 | I55: 0 | L55: 0 | O55: 0 | R55: 0 | U55: 0 | X55: 0 | AD55: 0.2 | AE55: 0.3 | AF55: 0.4 | AG55: 0.5 | AH55: 0.6 | AI55: 0.7
B56: E8 | F56: 0 | I56: 0 | L56: 0 | O56: 0 | R56: 0 | U56: 0 | X56: 0 | AD56: 0.2 | AE56: 0.3 | AF56: 0.4 | AG56: 0.5 | AH56: 0.6 | AI56: 0.7
F57: 0 | I57: 0 | L57: 0 | O57: 0 | R57: 0 | U57: 0 | X57: 0 | AD57: 0.2 | AE57: 0.3 | AF57: 0.4 | AG57: 0.5 | AH57: 0.6 | AI57: 0.7
F58: 0 | I58: 0 | L58: 0 | O58: 0 | R58: 0 | U58: 0 | X58: 0 | AD58: 0.2 | AE58: 0.3 | AF58: 0.4 | AG58: 0.5 | AH58: 0.6 | AI58: 0.7
F59: 0 | I59: 0 | L59: 0 | O59: 0 | R59: 0 | U59: 0 | X59: 0 | AD59: 0.2 | AE59: 0.3 | AF59: 0.4 | AG59: 0.5 | AH59: 0.6 | AI59: 0.7
F60: 0 | I60: 0 | L60: 0 | O60: 0 | R60: 0 | U60: 0 | X60: 0 | AD60: 0.2 | AE60: 0.3 | AF60: 0.4 | AG60: 0.5 | AH60: 0.6 | AI60: 0.7
F61: 0 | I61: 0 | L61: 0 | O61: 0 | R61: 0 | U61: 0 | X61: 0 | AD61: 0.2 | AE61: 0.3 | AF61: 0.4 | AG61: 0.5 | AH61: 0.6 | AI61: 0.7
F62: 0 | I62: 0 | L62: 0 | O62: 0 | R62: 0 | U62: 0 | X62: 0 | AD62: 0.2 | AE62: 0.3 | AF62: 0.4 | AG62: 0.5 | AH62: 0.6 | AI62: 0.7
F63: 0 | I63: 0 | L63: 0 | O63: 0 | R63: 0 | U63: 0 | X63: 0 | AD63: 0.2 | AE63: 0.3 | AF63: 0.4 | AG63: 0.5 | AH63: 0.6 | AI63: 0.7
B64: E9 | F64: 0 | I64: 0 | L64: 0 | O64: 0 | R64: 0 | U64: 0 | X64: 0 | AD64: 0.2 | AE64: 0.3 | AF64: 0.4 | AG64: 0.5 | AH64: 0.6 | AI64: 0.7
F65: 0 | I65: 0 | L65: 0 | O65: 0 | R65: 0 | U65: 0 | X65: 0 | AD65: 0.2 | AE65: 0.3 | AF65: 0.4 | AG65: 0.5 | AH65: 0.6 | AI65: 0.7
F66: 0 | I66: 0 | L66: 0 | O66: 0 | R66: 0 | U66: 0 | X66: 0 | AD66: 0.2 | AE66: 0.3 | AF66: 0.4 | AG66: 0.5 | AH66: 0.6 | AI66: 0.7
F67: 0 | I67: 0 | L67: 0 | O67: 0 | R67: 0 | U67: 0 | X67: 0 | AD67: 0.2 | AE67: 0.3 | AF67: 0.4 | AG67: 0.5 | AH67: 0.6 | AI67: 0.7
F68: 0 | I68: 0 | L68: 0 | O68: 0 | R68: 0 | U68: 0 | X68: 0 | AD68: 0.2 | AE68: 0.3 | AF68: 0.4 | AG68: 0.5 | AH68: 0.6 | AI68: 0.7
F69: 0 | I69: =+G69+H69 -> 0 | L69: =+J69+K69 -> 0 | O69: =+M69+N69 -> 0 | R69: =+P69+Q69 -> 0 | U69: =+S69+T69 -> 0 | X69: =+V69+W69 -> 0 | AD69: 0.2 | AE69: 0.3 | AF69: 0.4 | AG69: 0.5 | AH69: 0.6 | AI69: 0.7
F70: =+D70+E70 -> 0 | I70: 0 | L70: 0 | O70: 0 | R70: 0 | U70: 0 | X70: 0 | AD70: 0.2 | AE70: 0.3 | AF70: 0.4 | AG70: 0.5 | AH70: 0.6 | AI70: 0.7
F71: 0 | I71: 0 | L71: 0 | O71: 0 | R71: 0 | U71: 0 | X71: 0 | AD71: 0.2 | AE71: 0.3 | AF71: 0.4 | AG71: 0.5 | AH71: 0.6 | AI71: 0.7
B72: E10 | F72: 0 | I72: 0 | L72: 0 | O72: 0 | R72: 0 | U72: 0 | X72: 0 | AD72: 0.2 | AE72: 0.3 | AF72: 0.4 | AG72: 0.5 | AH72: 0.6 | AI72: 0.7
F73: 0 | I73: 0 | L73: 0 | O73: 0 | R73: 0 | U73: 0 | X73: 0 | AD73: 0.2 | AE73: 0.3 | AF73: 0.4 | AG73: 0.5 | AH73: 0.6 | AI73: 0.7
F74: 0 | I74: 0 | L74: 0 | O74: 0 | R74: 0 | U74: 0 | X74: 0 | AD74: 0.2 | AE74: 0.3 | AF74: 0.4 | AG74: 0.5 | AH74: 0.6 | AI74: 0.7
F75: 0 | I75: 0 | L75: 0 | O75: 0 | R75: 0 | U75: 0 | X75: 0 | AD75: 0.2 | AE75: 0.3 | AF75: 0.4 | AG75: 0.5 | AH75: 0.6 | AI75: 0.7
F76: 0 | I76: 0 | L76: 0 | O76: 0 | R76: 0 | U76: 0 | X76: 0 | AD76: 0.2 | AE76: 0.3 | AF76: 0.4 | AG76: 0.5 | AH76: 0.6 | AI76: 0.7
F77: 0 | I77: 0 | L77: 0 | O77: 0 | R77: 0 | U77: 0 | X77: 0 | AD77: 0.2 | AE77: 0.3 | AF77: 0.4 | AG77: 0.5 | AH77: 0.6 | AI77: 0.7
F78: 0 | I78: 0 | L78: 0 | O78: 0 | R78: 0 | U78: 0 | X78: 0 | AD78: 0.2 | AE78: 0.3 | AF78: 0.4 | AG78: 0.5 | AH78: 0.6 | AI78: 0.7
F79: 0 | I79: 0 | L79: 0 | O79: 0 | R79: 0 | U79: 0 | X79: 0 | AD79: 0.2 | AE79: 0.3 | AF79: 0.4 | AG79: 0.5 | AH79: 0.6 | AI79: 0.7
B80: E11 | C80: 1 | F80: 0 | I80: 0 | L80: 0 | O80: 0 | R80: 0 | U80: 0 | X80: 0 | AD80: 0.2 | AE80: 0.3 | AF80: 0.4 | AG80: 0.5 | AH80: 0.6 | AI80: 0.7
C81: 2 | F81: 0 | I81: 0 | L81: 0 | O81: 0 | R81: 0 | U81: 0 | X81: 0 | AD81: 0.2 | AE81: 0.3 | AF81: 0.4 | AG81: 0.5 | AH81: 0.6 | AI81: 0.7
C82: 3 | F82: 0 | I82: 0 | L82: 0 | O82: 0 | R82: 0 | U82: 0 | X82: 0 | AD82: 0.2 | AE82: 0.3 | AF82: 0.4 | AG82: 0.5 | AH82: 0.6 | AI82: 0.7
C83: 4 | F83: 0 | I83: 0 | L83: 0 | O83: 0 | R83: 0 | U83: 0 | X83: 0 | AD83: 0.2 | AE83: 0.3 | AF83: 0.4 | AG83: 0.5 | AH83: 0.6 | AI83: 0.7
C84: 5 | F84: 0 | I84: 0 | L84: 0 | O84: 0 | R84: 0 | U84: 0 | X84: 0 | AD84: 0.2 | AE84: 0.3 | AF84: 0.4 | AG84: 0.5 | AH84: 0.6 | AI84: 0.7
C85: 6 | F85: 0 | I85: 0 | L85: 0 | O85: 0 | R85: 0 | U85: 0 | X85: 0 | AD85: 0.2 | AE85: 0.3 | AF85: 0.4 | AG85: 0.5 | AH85: 0.6 | AI85: 0.7
C86: 7 | F86: 0 | I86: 0 | L86: 0 | O86: 0 | R86: 0 | U86: 0 | X86: 0 | AD86: 0.2 | AE86: 0.3 | AF86: 0.4 | AG86: 0.5 | AH86: 0.6 | AI86: 0.7
C87: 8 | F87: 0 | I87: 0 | L87: 0 | O87: 0 | R87: 0 | U87: 0 | X87: 0 | AD87: 0.2 | AE87: 0.3 | AF87: 0.4 | AG87: 0.5 | AH87: 0.6 | AI87: 0.7
B88: E12 | C88: 1 | F88: 0 | I88: 0 | L88: 0 | O88: 0 | R88: 0 | U88: 0 | X88: 0 | AD88: 0.2 | AE88: 0.3 | AF88: 0.4 | AG88: 0.5 | AH88: 0.6 | AI88: 0.7
C89: 2 | F89: 0 | I89: 0 | L89: 0 | O89: 0 | R89: 0 | U89: 0 | X89: 0 | AD89: 0.2 | AE89: 0.3 | AF89: 0.4 | AG89: 0.5 | AH89: 0.6 | AI89: 0.7
C90: 3 | F90: 0 | I90: 0 | L90: 0 | O90: 0 | R90: 0 | U90: 0 | X90: 0 | AD90: 0.2 | AE90: 0.3 | AF90: 0.4 | AG90: 0.5 | AH90: 0.6 | AI90: 0.7
C91: 4 | F91: 0 | I91: 0 | L91: 0 | O91: 0 | R91: 0 | U91: 0 | X91: 0 | AD91: 0.2 | AE91: 0.3 | AF91: 0.4 | AG91: 0.5 | AH91: 0.6 | AI91: 0.7
C92: 5 | F92: 0 | I92: 0 | L92: 0 | O92: 0 | R92: 0 | U92: 0 | X92: 0 | AD92: 0.2 | AE92: 0.3 | AF92: 0.4 | AG92: 0.5 | AH92: 0.6 | AI92: 0.7
C93: 6 | F93: 0 | I93: 0 | L93: 0 | O93: 0 | R93: 0 | U93: 0 | X93: 0 | AD93: 0.2 | AE93: 0.3 | AF93: 0.4 | AG93: 0.5 | AH93: 0.6 | AI93: 0.7
C94: 7 | F94: 0 | I94: 0 | L94: 0 | O94: 0 | R94: 0 | U94: 0 | X94: 0 | AD94: 0.2 | AE94: 0.3 | AF94: 0.4 | AG94: 0.5 | AH94: 0.6 | AI94: 0.7
B95: E13 | C95: 1 | F95: 0 | I95: 0 | L95: 0 | O95: 0 | R95: 0 | U95: 0 | X95: 0 | AD95: 0.2 | AE95: 0.3 | AF95: 0.4 | AG95: 0.5 | AH95: 0.6 | AI95: 0.7
C96: 2 | F96: 0 | I96: 0 | L96: 0 | O96: 0 | R96: 0 | U96: 0 | X96: 0 | AD96: 0.2 | AE96: 0.3 | AF96: 0.4 | AG96: 0.5 | AH96: 0.6 | AI96: 0.7
C97: 3 | F97: 0 | I97: 0 | L97: 0 | O97: 0 | R97: 0 | U97: 0 | X97: 0 | AD97: 0.2 | AE97: 0.3 | AF97: 0.4 | AG97: 0.5 | AH97: 0.6 | AI97: 0.7
C98: 4 | F98: 0 | I98: 0 | L98: 0 | O98: 0 | R98: 0 | U98: 0 | X98: 0 | AD98: 0.2 | AE98: 0.3 | AF98: 0.4 | AG98: 0.5 | AH98: 0.6 | AI98: 0.7
B99: E14 | F99: 0 | I99: 0 | L99: 0 | O99: 0 | R99: 0 | U99: 0 | X99: 0 | AD99: 0.2 | AE99: 0.3 | AF99: 0.4 | AG99: 0.5 | AH99: 0.6 | AI99: 0.7
F100: 0 | I100: 0 | L100: 0 | O100: 0 | R100: 0 | U100: 0 | X100: 0 | AD100: 0.2 | AE100: 0.3 | AF100: 0.4 | AG100: 0.5 | AH100: 0.6 | AI100: 0.7
F101: 0 | I101: 0 | L101: 0 | O101: 0 | R101: 0 | U101: 0 | X101: 0 | AD101: 0.2 | AE101: 0.3 | AF101: 0.4 | AG101: 0.5 | AH101: 0.6 | AI101: 0.7
F102: 0 | I102: 0 | L102: 0 | O102: 0 | R102: 0 | U102: 0 | X102: 0 | AD102: 0.2 | AE102: 0.3 | AF102: 0.4 | AG102: 0.5 | AH102: 0.6 | AI102: 0.7
F103: 0 | I103: 0 | L103: 0 | O103: 0 | R103: 0 | U103: 0 | X103: 0 | AD103: 0.2 | AE103: 0.3 | AF103: 0.4 | AG103: 0.5 | AH103: 0.6 | AI103: 0.7
F104: 0 | I104: 0 | L104: 0 | O104: 0 | R104: 0 | U104: 0 | X104: 0 | AD104: 0.2 | AE104: 0.3 | AF104: 0.4 | AG104: 0.5 | AH104: 0.6 | AI104: 0.7
F105: 0 | I105: 0 | L105: 0 | O105: 0 | R105: 0 | U105: 0 | X105: 0 | AD105: 0.2 | AE105: 0.3 | AF105: 0.4 | AG105: 0.5 | AH105: 0.6 | AI105: 0.7
F106: 0 | I106: 0 | L106: 0 | O106: 0 | R106: 0 | U106: 0 | X106: 0 | AD106: 0.2 | AE106: 0.3 | AF106: 0.4 | AG106: 0.5 | AH106: 0.6 | AI106: 0.7
B107: E15 | F107: 0 | I107: 0 | L107: 0 | O107: 0 | R107: 0 | U107: 0 | X107: 0 | AD107: 0.2 | AE107: 0.3 | AF107: 0.4 | AG107: 0.5 | AH107: 0.6 | AI107: 0.7
F108: 0 | I108: 0 | L108: 0 | O108: 0 | R108: 0 | U108: 0 | X108: 0 | AD108: 0.2 | AE108: 0.3 | AF108: 0.4 | AG108: 0.5 | AH108: 0.6 | AI108: 0.7
F109: 0 | I109: 0 | L109: 0 | O109: 0 | R109: 0 | U109: 0 | X109: 0 | AD109: 0.2 | AE109: 0.3 | AF109: 0.4 | AG109: 0.5 | AH109: 0.6 | AI109: 0.7
F110: 0 | I110: 0 | L110: 0 | O110: 0 | R110: 0 | U110: 0 | X110: 0 | AD110: 0.2 | AE110: 0.3 | AF110: 0.4 | AG110: 0.5 | AH110: 0.6 | AI110: 0.7
F111: 0 | I111: 0 | L111: 0 | O111: 0 | R111: 0 | U111: 0 | X111: 0 | AD111: 0.2 | AE111: 0.3 | AF111: 0.4 | AG111: 0.5 | AH111: 0.6 | AI111: 0.7
F112: 0 | I112: 0 | L112: 0 | O112: 0 | R112: 0 | U112: 0 | X112: 0 | AD112: 0.2 | AE112: 0.3 | AF112: 0.4 | AG112: 0.5 | AH112: 0.6 | AI112: 0.7
F113: 0 | I113: 0 | L113: 0 | O113: 0 | R113: 0 | U113: 0 | X113: 0 | AD113: 0.2 | AE113: 0.3 | AF113: 0.4 | AG113: 0.5 | AH113: 0.6 | AI113: 0.7
F114: 0 | I114: 0 | L114: 0 | O114: 0 | R114: 0 | U114: 0 | X114: 0 | AD114: 0.2 | AE114: 0.3 | AF114: 0.4 | AG114: 0.5 | AH114: 0.6 | AI114: 0.7
B115: E16 | F115: 0 | I115: 0 | L115: 0 | O115: 0 | R115: 0 | U115: 0 | X115: 0 | AD115: 0.2 | AE115: 0.3 | AF115: 0.4 | AG115: 0.5 | AH115: 0.6 | AI115: 0.7
F116: 0 | I116: 0 | L116: 0 | O116: 0 | R116: 0 | U116: 0 | X116: 0 | AD116: 0.2 | AE116: 0.3 | AF116: 0.4 | AG116: 0.5 | AH116: 0.6 | AI116: 0.7
F117: 0 | I117: 0 | L117: 0 | O117: 0 | R117: 0 | U117: 0 | X117: 0 | AD117: 0.2 | AE117: 0.3 | AF117: 0.4 | AG117: 0.5 | AH117: 0.6 | AI117: 0.7
F118: 0 | I118: 0 | L118: 0 | O118: 0 | R118: 0 | U118: 0 | X118: 0 | AD118: 0.2 | AE118: 0.3 | AF118: 0.4 | AG118: 0.5 | AH118: 0.6 | AI118: 0.7
F119: 0 | I119: 0 | L119: 0 | O119: 0 | R119: 0 | U119: 0 | X119: 0 | AD119: 0.2 | AE119: 0.3 | AF119: 0.4 | AG119: 0.5 | AH119: 0.6 | AI119: 0.7
F120: 0 | I120: 0 | L120: 0 | O120: 0 | R120: 0 | U120: 0 | X120: 0 | AD120: 0.2 | AE120: 0.3 | AF120: 0.4 | AG120: 0.5 | AH120: 0.6 | AI120: 0.7
F121: 0 | I121: 0 | L121: 0 | O121: 0 | R121: 0 | U121: 0 | X121: 0 | AD121: 0.2 | AE121: 0.3 | AF121: 0.4 | AG121: 0.5 | AH121: 0.6 | AI121: 0.7
F122: 0 | I122: 0 | L122: 0 | O122: 0 | R122: 0 | U122: 0 | X122: 0 | AD122: 0.2 | AE122: 0.3 | AF122: 0.4 | AG122: 0.5 | AH122: 0.6 | AI122: 0.7
B123: E17 | F123: 0 | I123: 0 | L123: 0 | O123: 0 | R123: 0 | U123: 0 | X123: 0 | AD123: 0.2 | AE123: 0.3 | AF123: 0.4 | AG123: 0.5 | AH123: 0.6 | AI123: 0.7
F124: 0 | I124: 0 | L124: 0 | O124: 0 | R124: 0 | U124: 0 | X124: 0 | AD124: 0.2 | AE124: 0.3 | AF124: 0.4 | AG124: 0.5 | AH124: 0.6 | AI124: 0.7
F125: 0 | I125: 0 | L125: 0 | O125: 0 | R125: 0 | U125: 0 | X125: 0 | AD125: 0.2 | AE125: 0.3 | AF125: 0.4 | AG125: 0.5 | AH125: 0.6 | AI125: 0.7
F126: 0 | I126: 0 | L126: 0 | O126: 0 | R126: 0 | U126: 0 | X126: 0 | AD126: 0.2 | AE126: 0.3 | AF126: 0.4 | AG126: 0.5 | AH126: 0.6 | AI126: 0.7
F127: 0 | I127: 0 | L127: 0 | O127: 0 | R127: 0 | U127: 0 | X127: 0 | AD127: 0.2 | AE127: 0.3 | AF127: 0.4 | AG127: 0.5 | AH127: 0.6 | AI127: 0.7
F128: 0 | I128: 0 | L128: 0 | O128: 0 | R128: 0 | U128: 0 | X128: 0 | AD128: 0.2 | AE128: 0.3 | AF128: 0.4 | AG128: 0.5 | AH128: 0.6 | AI128: 0.7
F129: 0 | I129: 0 | L129: 0 | O129: 0 | R129: 0 | U129: 0 | X129: 0 | AD129: 0.2 | AE129: 0.3 | AF129: 0.4 | AG129: 0.5 | AH129: 0.6 | AI129: 0.7
F130: 0 | I130: 0 | L130: 0 | O130: 0 | R130: 0 | U130: 0 | X130: 0 | AD130: 0.2 | AE130: 0.3 | AF130: 0.4 | AG130: 0.5 | AH130: 0.6 | AI130: 0.7
B131: E18 | F131: 0 | I131: 0 | L131: 0 | O131: 0 | R131: 0 | U131: 0 | X131: 0 | AD131: 0.2 | AE131: 0.3 | AF131: 0.4 | AG131: 0.5 | AH131: 0.6 | AI131: 0.7
F132: 0 | I132: 0 | L132: 0 | O132: 0 | R132: 0 | U132: 0 | X132: 0 | AD132: 0.2 | AE132: 0.3 | AF132: 0.4 | AG132: 0.5 | AH132: 0.6 | AI132: 0.7
F133: 0 | I133: =+G133+H133 -> 0 | L133: =+J133+K133 -> 0 | O133: =+M133+N133 -> 0 | R133: =+P133+Q133 -> 0 | U133: =+S133+T133 -> 0 | X133: =+V133+W133 -> 0 | AD133: 0.2 | AE133: 0.3 | AF133: 0.4 | AG133: 0.5 | AH133: 0.6 | AI133: 0.7
F134: =+D134+E134 -> 0 | I134: 0 | L134: 0 | O134: 0 | R134: 0 | U134: 0 | X134: 0 | AD134: 0.2 | AE134: 0.3 | AF134: 0.4 | AG134: 0.5 | AH134: 0.6 | AI134: 0.7
F135: 0 | I135: 0 | L135: 0 | O135: 0 | R135: 0 | U135: 0 | X135: 0 | AD135: 0.2 | AE135: 0.3 | AF135: 0.4 | AG135: 0.5 | AH135: 0.6 | AI135: 0.7
F136: 0 | I136: 0 | L136: 0 | O136: 0 | R136: 0 | U136: 0 | X136: 0 | AD136: 0.2 | AE136: 0.3 | AF136: 0.4 | AG136: 0.5 | AH136: 0.6 | AI136: 0.7
F137: 0 | I137: 0 | L137: 0 | O137: 0 | R137: 0 | U137: 0 | X137: 0 | AD137: 0.2 | AE137: 0.3 | AF137: 0.4 | AG137: 0.5 | AH137: 0.6 | AI137: 0.7
F138: 0 | I138: 0 | L138: 0 | O138: 0 | R138: 0 | U138: 0 | X138: 0 | AD138: 0.2 | AE138: 0.3 | AF138: 0.4 | AG138: 0.5 | AH138: 0.6 | AI138: 0.7
B139: E19 | F139: 0 | I139: 0 | L139: 0 | O139: 0 | R139: 0 | U139: 0 | X139: 0 | AD139: 0.2 | AE139: 0.3 | AF139: 0.4 | AG139: 0.5 | AH139: 0.6 | AI139: 0.7
F140: 0 | I140: 0 | L140: 0 | O140: 0 | R140: 0 | U140: 0 | X140: 0 | AD140: 0.2 | AE140: 0.3 | AF140: 0.4 | AG140: 0.5 | AH140: 0.6 | AI140: 0.7
F141: 0 | I141: 0 | L141: 0 | O141: 0 | R141: 0 | U141: 0 | X141: 0 | AD141: 0.2 | AE141: 0.3 | AF141: 0.4 | AG141: 0.5 | AH141: 0.6 | AI141: 0.7
F142: 0 | I142: 0 | L142: 0 | O142: 0 | R142: 0 | U142: 0 | X142: 0 | AD142: 0.2 | AE142: 0.3 | AF142: 0.4 | AG142: 0.5 | AH142: 0.6 | AI142: 0.7
F143: 0 | I143: 0 | L143: 0 | O143: 0 | R143: 0 | U143: 0 | X143: 0 | AD143: 0.2 | AE143: 0.3 | AF143: 0.4 | AG143: 0.5 | AH143: 0.6 | AI143: 0.7
F144: 0 | I144: 0 | L144: 0 | O144: 0 | R144: 0 | U144: 0 | X144: 0 | AD144: 0.2 | AE144: 0.3 | AF144: 0.4 | AG144: 0.5 | AH144: 0.6 | AI144: 0.7
F145: 0 | I145: 0 | L145: 0 | O145: 0 | R145: 0 | U145: 0 | X145: 0 | AD145: 0.2 | AE145: 0.3 | AF145: 0.4 | AG145: 0.5 | AH145: 0.6 | AI145: 0.7
F146: 0 | I146: 0 | L146: 0 | O146: 0 | R146: 0 | U146: 0 | X146: 0 | AD146: 0.2 | AE146: 0.3 | AF146: 0.4 | AG146: 0.5 | AH146: 0.6 | AI146: 0.7
B147: E20 | F147: 0 | I147: 0 | L147: 0 | O147: 0 | R147: 0 | U147: 0 | X147: 0 | AD147: 0.2 | AE147: 0.3 | AF147: 0.4 | AG147: 0.5 | AH147: 0.6 | AI147: 0.7
F148: 0 | I148: 0 | L148: 0 | O148: 0 | R148: 0 | U148: 0 | X148: 0 | AD148: 0.2 | AE148: 0.3 | AF148: 0.4 | AG148: 0.5 | AH148: 0.6 | AI148: 0.7
F149: 0 | I149: 0 | L149: 0 | O149: 0 | R149: 0 | U149: 0 | X149: 0 | AD149: 0.2 | AE149: 0.3 | AF149: 0.4 | AG149: 0.5 | AH149: 0.6 | AI149: 0.7
F150: 0 | I150: 0 | L150: 0 | O150: 0 | R150: 0 | U150: 0 | X150: 0 | AD150: 0.2 | AE150: 0.3 | AF150: 0.4 | AG150: 0.5 | AH150: 0.6 | AI150: 0.7
F151: 0 | I151: 0 | L151: 0 | O151: 0 | R151: 0 | U151: 0 | X151: 0 | AD151: 0.2 | AE151: 0.3 | AF151: 0.4 | AG151: 0.5 | AH151: 0.6 | AI151: 0.7
F152: 0 | I152: 0 | L152: 0 | O152: 0 | R152: 0 | U152: 0 | X152: 0 | AD152: 0.2 | AE152: 0.3 | AF152: 0.4 | AG152: 0.5 | AH152: 0.6 | AI152: 0.7
F153: 0 | I153: 0 | L153: 0 | O153: 0 | R153: 0 | U153: 0 | X153: 0 | AD153: 0.2 | AE153: 0.3 | AF153: 0.4 | AG153: 0.5 | AH153: 0.6 | AI153: 0.7
F154: 0 | I154: 0 | L154: 0 | O154: 0 | R154: 0 | U154: 0 | X154: 0 | AD154: 0.2 | AE154: 0.3 | AF154: 0.4 | AG154: 0.5 | AH154: 0.6 | AI154: 0.7
B155: E21 | F155: 0 | I155: 0 | L155: 0 | O155: 0 | R155: 0 | U155: 0 | X155: 0 | AD155: 0.2 | AE155: 0.3 | AF155: 0.4 | AG155: 0.5 | AH155: 0.6 | AI155: 0.7
F156: 0 | I156: 0 | L156: 0 | O156: 0 | R156: 0 | U156: 0 | X156: 0 | AD156: 0.2 | AE156: 0.3 | AF156: 0.4 | AG156: 0.5 | AH156: 0.6 | AI156: 0.7
F157: 0 | I157: 0 | L157: 0 | O157: 0 | R157: 0 | U157: 0 | X157: 0 | AD157: 0.2 | AE157: 0.3 | AF157: 0.4 | AG157: 0.5 | AH157: 0.6 | AI157: 0.7
F158: 0 | I158: 0 | L158: 0 | O158: 0 | R158: 0 | U158: 0 | X158: 0 | AD158: 0.2 | AE158: 0.3 | AF158: 0.4 | AG158: 0.5 | AH158: 0.6 | AI158: 0.7
F159: 0 | I159: 0 | L159: 0 | O159: 0 | R159: 0 | U159: 0 | X159: 0 | AD159: 0.2 | AE159: 0.3 | AF159: 0.4 | AG159: 0.5 | AH159: 0.6 | AI159: 0.7
F160: 0 | I160: 0 | L160: 0 | O160: 0 | R160: 0 | U160: 0 | X160: 0 | AD160: 0.2 | AE160: 0.3 | AF160: 0.4 | AG160: 0.5 | AH160: 0.6 | AI160: 0.7
F161: 0 | I161: 0 | L161: 0 | O161: 0 | R161: 0 | U161: 0 | X161: 0 | AD161: 0.2 | AE161: 0.3 | AF161: 0.4 | AG161: 0.5 | AH161: 0.6 | AI161: 0.7
F162: 0 | I162: 0 | L162: 0 | O162: 0 | R162: 0 | U162: 0 | X162: 0 | AD162: 0.2 | AE162: 0.3 | AF162: 0.4 | AG162: 0.5 | AH162: 0.6 | AI162: 0.7
B163: E22 | F163: 0 | I163: 0 | L163: 0 | O163: 0 | R163: 0 | U163: 0 | X163: 0 | AD163: 0.2 | AE163: 0.3 | AF163: 0.4 | AG163: 0.5 | AH163: 0.6 | AI163: 0.7
F164: 0 | I164: 0 | L164: 0 | O164: 0 | R164: 0 | U164: 0 | X164: 0 | AD164: 0.2 | AE164: 0.3 | AF164: 0.4 | AG164: 0.5 | AH164: 0.6 | AI164: 0.7
F165: 0 | I165: 0 | L165: 0 | O165: 0 | R165: 0 | U165: 0 | X165: 0 | AD165: 0.2 | AE165: 0.3 | AF165: 0.4 | AG165: 0.5 | AH165: 0.6 | AI165: 0.7
F166: 0 | I166: 0 | L166: 0 | O166: 0 | R166: 0 | U166: 0 | X166: 0 | AD166: 0.2 | AE166: 0.3 | AF166: 0.4 | AG166: 0.5 | AH166: 0.6 | AI166: 0.7
F167: 0 | I167: 0 | L167: 0 | O167: 0 | R167: 0 | U167: 0 | X167: 0 | AD167: 0.2 | AE167: 0.3 | AF167: 0.4 | AG167: 0.5 | AH167: 0.6 | AI167: 0.7
F168: 0 | I168: 0 | L168: 0 | O168: 0 | R168: 0 | U168: 0 | X168: 0 | AD168: 0.2 | AE168: 0.3 | AF168: 0.4 | AG168: 0.5 | AH168: 0.6 | AI168: 0.7
F169: 0 | I169: 0 | L169: 0 | O169: 0 | R169: 0 | U169: 0 | X169: 0 | AD169: 0.2 | AE169: 0.3 | AF169: 0.4 | AG169: 0.5 | AH169: 0.6 | AI169: 0.7
F170: 0 | I170: 0 | L170: 0 | O170: 0 | R170: 0 | U170: 0 | X170: 0 | AD170: 0.2 | AE170: 0.3 | AF170: 0.4 | AG170: 0.5 | AH170: 0.6 | AI170: 0.7
B171: E23 | F171: 0 | I171: 0 | L171: 0 | O171: 0 | R171: 0 | U171: 0 | X171: 0 | AD171: 0.2 | AE171: 0.3 | AF171: 0.4 | AG171: 0.5 | AH171: 0.6 | AI171: 0.7
F172: 0 | I172: 0 | L172: 0 | O172: 0 | R172: 0 | U172: 0 | X172: 0 | AD172: 0.2 | AE172: 0.3 | AF172: 0.4 | AG172: 0.5 | AH172: 0.6 | AI172: 0.7
F173: 0 | I173: 0 | L173: 0 | O173: 0 | R173: 0 | U173: 0 | X173: 0 | AD173: 0.2 | AE173: 0.3 | AF173: 0.4 | AG173: 0.5 | AH173: 0.6 | AI173: 0.7
F174: 0 | I174: 0 | L174: 0 | O174: 0 | R174: 0 | U174: 0 | X174: 0 | AD174: 0.2 | AE174: 0.3 | AF174: 0.4 | AG174: 0.5 | AH174: 0.6 | AI174: 0.7
F175: 0 | I175: 0 | L175: 0 | O175: 0 | R175: 0 | U175: 0 | X175: 0 | AD175: 0.2 | AE175: 0.3 | AF175: 0.4 | AG175: 0.5 | AH175: 0.6 | AI175: 0.7
F176: 0 | I176: 0 | L176: 0 | O176: 0 | R176: 0 | U176: 0 | X176: 0 | AD176: 0.2 | AE176: 0.3 | AF176: 0.4 | AG176: 0.5 | AH176: 0.6 | AI176: 0.7
F177: 0 | I177: 0 | L177: 0 | O177: 0 | R177: 0 | U177: 0 | X177: 0 | AD177: 0.2 | AE177: 0.3 | AF177: 0.4 | AG177: 0.5 | AH177: 0.6 | AI177: 0.7
F178: 0 | I178: 0 | L178: 0 | O178: 0 | R178: 0 | U178: 0 | X178: 0 | AD178: 0.2 | AE178: 0.3 | AF178: 0.4 | AG178: 0.5 | AH178: 0.6 | AI178: 0.7
B179: E24 | F179: 0 | I179: 0 | L179: 0 | O179: 0 | R179: 0 | U179: 0 | X179: 0 | AD179: 0.2 | AE179: 0.3 | AF179: 0.4 | AG179: 0.5 | AH179: 0.6 | AI179: 0.7
F180: 0 | I180: 0 | L180: 0 | O180: 0 | R180: 0 | U180: 0 | X180: 0 | AD180: 0.2 | AE180: 0.3 | AF180: 0.4 | AG180: 0.5 | AH180: 0.6 | AI180: 0.7
F181: 0 | I181: 0 | L181: 0 | O181: 0 | R181: 0 | U181: 0 | X181: 0 | AD181: 0.2 | AE181: 0.3 | AF181: 0.4 | AG181: 0.5 | AH181: 0.6 | AI181: 0.7
F182: 0 | I182: 0 | L182: 0 | O182: 0 | R182: 0 | U182: 0 | X182: 0 | AD182: 0.2 | AE182: 0.3 | AF182: 0.4 | AG182: 0.5 | AH182: 0.6 | AI182: 0.7
F183: 0 | I183: 0 | L183: 0 | O183: 0 | R183: 0 | U183: 0 | X183: 0 | AD183: 0.2 | AE183: 0.3 | AF183: 0.4 | AG183: 0.5 | AH183: 0.6 | AI183: 0.7
F184: 0 | I184: 0 | L184: 0 | O184: 0 | R184: 0 | U184: 0 | X184: 0 | AD184: 0.2 | AE184: 0.3 | AF184: 0.4 | AG184: 0.5 | AH184: 0.6 | AI184: 0.7
F185: 0 | I185: 0 | L185: 0 | O185: 0 | R185: 0 | U185: 0 | X185: 0 | AD185: 0.2 | AE185: 0.3 | AF185: 0.4 | AG185: 0.5 | AH185: 0.6 | AI185: 0.7
F186: 0 | I186: 0 | L186: 0 | O186: 0 | R186: 0 | U186: 0 | X186: 0 | AD186: 0.2 | AE186: 0.3 | AF186: 0.4 | AG186: 0.5 | AH186: 0.6 | AI186: 0.7
B187: E25 | F187: 0 | I187: 0 | L187: 0 | O187: 0 | R187: 0 | U187: 0 | X187: 0 | AD187: 0.2 | AE187: 0.3 | AF187: 0.4 | AG187: 0.5 | AH187: 0.6 | AI187: 0.7
F188: 0 | I188: 0 | L188: 0 | O188: 0 | R188: 0 | U188: 0 | X188: 0 | AD188: 0.2 | AE188: 0.3 | AF188: 0.4 | AG188: 0.5 | AH188: 0.6 | AI188: 0.7
F189: 0 | I189: 0 | L189: 0 | O189: 0 | R189: 0 | U189: 0 | X189: 0 | AD189: 0.2 | AE189: 0.3 | AF189: 0.4 | AG189: 0.5 | AH189: 0.6 | AI189: 0.7
F190: 0 | I190: 0 | L190: 0 | O190: 0 | R190: 0 | U190: 0 | X190: 0 | AD190: 0.2 | AE190: 0.3 | AF190: 0.4 | AG190: 0.5 | AH190: 0.6 | AI190: 0.7
F191: 0 | I191: 0 | L191: 0 | O191: 0 | R191: 0 | U191: 0 | X191: 0 | AD191: 0.2 | AE191: 0.3 | AF191: 0.4 | AG191: 0.5 | AH191: 0.6 | AI191: 0.7
F192: 0 | I192: 0 | L192: 0 | O192: 0 | R192: 0 | U192: 0 | X192: 0 | AD192: 0.2 | AE192: 0.3 | AF192: 0.4 | AG192: 0.5 | AH192: 0.6 | AI192: 0.7
F193: 0 | I193: 0 | L193: 0 | O193: 0 | R193: 0 | U193: 0 | X193: 0 | AD193: 0.2 | AE193: 0.3 | AF193: 0.4 | AG193: 0.5 | AH193: 0.6 | AI193: 0.7
F194: 0 | I194: 0 | L194: 0 | O194: 0 | R194: 0 | U194: 0 | X194: 0 | AD194: 0.2 | AE194: 0.3 | AF194: 0.4 | AG194: 0.5 | AH194: 0.6 | AI194: 0.7
B195: E26 | F195: 0 | I195: 0 | L195: 0 | O195: 0 | R195: 0 | U195: 0 | X195: 0 | AD195: 0.2 | AE195: 0.3 | AF195: 0.4 | AG195: 0.5 | AH195: 0.6 | AI195: 0.7
F196: 0 | I196: 0 | L196: 0 | O196: 0 | R196: 0 | U196: 0 | X196: 0 | AD196: 0.2 | AE196: 0.3 | AF196: 0.4 | AG196: 0.5 | AH196: 0.6 | AI196: 0.7
F197: 0 | I197: =+G197+H197 -> 0 | L197: =+J197+K197 -> 0 | O197: =+M197+N197 -> 0 | R197: =+P197+Q197 -> 0 | U197: =+S197+T197 -> 0 | X197: =+V197+W197 -> 0 | AD197: 0.2 | AE197: 0.3 | AF197: 0.4 | AG197: 0.5 | AH197: 0.6 | AI197: 0.7
F198: =+D198+E198 -> 0 | I198: 0 | L198: 0 | O198: 0 | R198: 0 | U198: 0 | X198: 0 | AD198: 0.2 | AE198: 0.3 | AF198: 0.4 | AG198: 0.5 | AH198: 0.6 | AI198: 0.7
F199: 0 | I199: 0 | L199: 0 | O199: 0 | R199: 0 | U199: 0 | X199: 0 | AD199: 0.2 | AE199: 0.3 | AF199: 0.4 | AG199: 0.5 | AH199: 0.6 | AI199: 0.7
F200: 0 | I200: 0 | L200: 0 | O200: 0 | R200: 0 | U200: 0 | X200: 0 | AD200: 0.2 | AE200: 0.3 | AF200: 0.4 | AG200: 0.5 | AH200: 0.6 | AI200: 0.7
F201: 0 | I201: 0 | L201: 0 | O201: 0 | R201: 0 | U201: 0 | X201: 0 | AD201: 0.2 | AE201: 0.3 | AF201: 0.4 | AG201: 0.5 | AH201: 0.6 | AI201: 0.7
... 105 more rows
